Workbook

Sheet MENU
A6: C1
A7: =LEFT(C7,4) -> 
A10: C5. | C10: C5. ELECTORES POR PAÍS DE ORIGEN
C25: Observaciones al
C26: correo electrónico: dejecutiva@tse.go.cr
A27: =LEFT(C27,4) -> 

Sheet 1
A1: CUADRO 1
A2: COSTA RICA: TOTAL Y VARIACIÓN DEL ELECTORADO
A3: ENTRE DICIEMBRE 2010 Y DICIEMBRE 2012
A4: SEGÚN PROVINCIA Y SEXO
A6: Provincia y sexo | B6: Padrón Nacional Electoral | E6: Variación
B7: Diciembre 2010 | C7: Diciembre 2012 | E7: Absoluto | F7: Porcentaje
A9: Costa Rica | B9: =B13+B17+B21+B25+B29+B33+B37+B41 -> 2866217 | C9: 3003922 | E9: =C9-B9 -> 137705 | F9: =E9/B9*100 -> 4.804416414
A10: Hombres | B10: 1430857 | C10: 1500951 | E10: =C10-B10 -> 70094 | F10: =E10/B10*100 -> 4.898742502
A11: Mujeres | B11: 1435360 | C11: 1502971 | E11: =C11-B11 -> 67611 | F11: =E11/B11*100 -> 4.710386245
A13: San José | B13: =SUM(B14:B15) -> 1016678 | C13: =+C14+C15 -> 1046343 | E13: =C13-B13 -> 29665 | F13: =E13/B13*100 -> 2.917836326
A14: Hombres | B14: 495505 | C14: 510843 | E14: =C14-B14 -> 15338 | F14: =E14/B14*100 -> 3.095427897
A15: Mujeres | B15: 521173 | C15: 535500 | E15: =C15-B15 -> 14327 | F15: =E15/B15*100 -> 2.748991218
A17: Alajuela | B17: =+B18+B19 -> 533285 | C17: =+C18+C19 -> 562017 | E17: =C17-B17 -> 28732 | F17: =E17/B17*100 -> 5.387738264
A18: Hombres | B18: 269128 | C18: 283790 | E18: =C18-B18 -> 14662 | F18: =E18/B18*100 -> 5.44796528
A19: Mujeres | B19: 264157 | C19: 278227 | E19: =C19-B19 -> 14070 | F19: =E19/B19*100 -> 5.326377874
A21: Cartago | B21: =+B22+B23 -> 334473 | C21: =+C22+C23 -> 351153 | E21: =C21-B21 -> 16680 | F21: =E21/B21*100 -> 4.986949619
A22: Hombres | B22: 167036 | C22: 175432 | E22: =C22-B22 -> 8396 | F22: =E22/B22*100 -> 5.026461362
A23: Mujeres | B23: 167437 | C23: 175721 | E23: =C23-B23 -> 8284 | F23: =E23/B23*100 -> 4.947532505
A25: Heredia | B25: =+B26+B27 -> 283771 | C25: =+C26+C27 -> 299166 | E25: =C25-B25 -> 15395 | F25: =E25/B25*100 -> 5.425149152
A26: Hombres | B26: 139912 | C26: 147640 | E26: =C26-B26 -> 7728 | F26: =E26/B26*100 -> 5.523471897
A27: Mujeres | B27: 143859 | C27: 151526 | E27: =C27-B27 -> 7667 | F27: =E27/B27*100 -> 5.329524048
A29: Guanacaste | B29: =+B30+B31 -> 203614 | C29: =+C30+C31 -> 215449 | E29: =C29-B29 -> 11835 | F29: =E29/B29*100 -> 5.812468691
A30: Hombres | B30: 103249 | C30: 109215 | E30: =C30-B30 -> 5966 | F30: =E30/B30*100 -> 5.778264196
A31: Mujeres | B31: 100365 | C31: 106234 | E31: =C31-B31 -> 5869 | F31: =E31/B31*100 -> 5.847656055
A33: Puntarenas | B33: =+B34+B35 -> 265197 | C33: =+C34+C35 -> 280534 | E33: =C33-B33 -> 15337 | F33: =E33/B33*100 -> 5.783247925
A34: Hombres | B34: 136989 | C34: 144745 | E34: =C34-B34 -> 7756 | F34: =E34/B34*100 -> 5.661768463
A35: Mujeres | B35: 128208 | C35: 135789 | E35: =C35-B35 -> 7581 | F35: =E35/B35*100 -> 5.913047548
A37: Limón | B37: =+B38+B39 -> 228491 | C37: =+C38+C39 -> 243146 | E37: =C37-B37 -> 14655 | F37: =E37/B37*100 -> 6.413819363
A38: Hombres | B38: 118700 | C38: 126180 | E38: =C38-B38 -> 7480 | F38: =E38/B38*100 -> 6.301600674
A39: Mujeres | B39: 109791 | C39: 116966 | E39: =C39-B39 -> 7175 | F39: =E39/B39*100 -> 6.535144046
A41: En el extranjero 1/ | B41: =+B42+B43 -> 708 | C41: =+C42+C43 -> 6114 | E41: =C41-B41 -> 5406 | F41: =E41/B41*100 -> 763.559322
A42: Hombres | B42: 338 | C42: 3106 | E42: =C42-B42 -> 2768 | F42: =E42/B42*100 -> 818.9349112
A43: Mujeres | B43: 370 | C43: 3008 | E43: =C43-B43 -> 2638 | F43: =E43/B43*100 -> 712.972973
A46: 1/ Costarricenses inscritos(as) que pueden ejercer el voto en extranjero para designar los puestos de Presidencia y Vicepresidencias, así como en consultas populares de orden nacional, según el artículo 187 del Código Electoral.
A48: Fuente: Sección Padrón Electoral del Tribunal Supremo de Elecciones.

Sheet 2
A1: CUADRO 2
A2: COSTA RICA: ELECTORADO EN EL PADRÓN PARA LAS ELECCIONES DE
A3: DICIEMBRE 2010 Y EN EL PADRÓN AL 31 DE DICIEMBRE DE 2012
A4: POR SEXO, SEGÚN PROVINCIA Y CANTÓN
A6: Provincia y cantón | B6: Padrón Nacional Electoral
B7: Diciembre 2010 | F7: Diciembre 2012
B8: Total | C8: Hombres | D8: Mujeres | F8: Total | G8: Hombres | H8: Mujeres
A9: Costa Rica | B9: =SUM(B10:B17) -> 2866217 | C9: =SUM(C10:C17) -> 1430857 | D9: =SUM(D10:D17) -> 1435360 | E9: =E18+E39+E55+E64+E75+E87+E99 -> 0 | F9: =F18+F39+F55+F64+F75+F87+F99+F106 -> 3003922 | G9: =G18+G39+G55+G64+G75+G87+G99+G106 -> 1500951 | H9: =H18+H39+H55+H64+H75+H87+H99+H106 -> 1502971
A10: San José | B10: =B18 -> 1016678 | C10: 495505 | D10: 521173 | E10: 0 | F10: 1046343 | G10: 510843 | H10: 535500
A11: Alajuela | B11: =B39 -> 533285 | C11: 269128 | D11: 264157 | E11: 0 | F11: 562017 | G11: 283790 | H11: 278227
A12: Cartago | B12: =B55 -> 334473 | C12: 167036 | D12: 167437 | E12: 0 | F12: 351153 | G12: 175432 | H12: 175721
A13: Heredia | B13: =B64 -> 283771 | C13: 139912 | D13: 143859 | E13: 0 | F13: 299166 | G13: 147640 | H13: 151526
A14: Guanacaste | B14: =B75 -> 203614 | C14: 103249 | D14: 100365 | E14: 0 | F14: 215449 | G14: 109215 | H14: 106234
A15: Puntarenas | B15: =B87 -> 265197 | C15: 136989 | D15: 128208 | E15: 0 | F15: 280534 | G15: 144745 | H15: 135789
A16: Limón | B16: =B99 -> 228491 | C16: 118700 | D16: 109791 | E16: 0 | F16: 243146 | G16: 126180 | H16: 116966
A17: En el extranjero 1/ | B17: =B106 -> 708 | C17: =C106 -> 338 | D17: =D106 -> 370 | F17: =F106 -> 6114 | G17: =G106 -> 3106 | H17: =H106 -> 3008
A18: San José | B18: =SUM(C18:D18) -> 1016678 | C18: =SUM(C19:C38) -> 495505 | D18: =SUM(D19:D38) -> 521173 | F18: =SUM(F19:F38) -> 1046343 | G18: =SUM(G19:G38) -> 510843 | H18: =SUM(H19:H38) -> 535500
A19: San José | B19: =+C19+D19 -> 225542 | C19: 108215 | D19: 117327 | F19: =SUM(G19:H19) -> 226533 | G19: 108963 | H19: 117570
A20: Escazú | B20: 40526 | C20: 19736 | D20: 20790 | F20: 42366 | G20: 20723 | H20: 21643
A21: Desamparados | B21: 144901 | C21: 71011 | D21: 73890 | F21: 149597 | G21: 73508 | H21: 76089
A22: Puriscal | B22: 24663 | C22: 12429 | D22: 12234 | F22: 25871 | G22: 13048 | H22: 12823
A23: Tarrazú | B23: 10616 | C23: 5449 | D23: 5167 | F23: 11217 | G23: 5699 | H23: 5518
A24: Aserrí | B24: 37616 | C24: 18801 | D24: 18815 | F24: 39450 | G24: 19711 | H24: 19739
A25: Mora | B25: 17413 | C25: 8641 | D25: 8772 | F25: 18601 | G25: 9233 | H25: 9368
A26: Goicoechea | B26: 85797 | C26: 41130 | D26: 44667 | F26: 86760 | G26: 41585 | H26: 45175
A27: Santa Ana | B27: 27941 | C27: 13729 | D27: 14212 | F27: 30066 | G27: 14821 | H27: 15245
A28: Alajuelita | B28: 44907 | C28: 22315 | D28: 22592 | F28: 46714 | G28: 23127 | H28: 23587
A29: Vázquez de Coronado | B29: 45831 | C29: 22200 | D29: 23631 | F29: 48565 | G29: 23503 | H29: 25062
A30: Acosta | B30: 14354 | C30: 7482 | D30: 6872 | F30: 15278 | G30: 7938 | H30: 7340
A31: Tibás | B31: 55315 | C31: 26064 | D31: 29251 | F31: 55230 | G31: 26073 | H31: 29157
A32: Moravia | B32: 40392 | C32: 19306 | D32: 21086 | F32: 41654 | G32: 19999 | H32: 21655
A33: Montes de Oca | B33: 41135 | C33: 19190 | D33: 21945 | F33: 41219 | G33: 19349 | H33: 21870
A34: Turrubares | B34: 4187 | C34: 2195 | D34: 1992 | F34: 4324 | G34: 2264 | H34: 2060
A35: Dota | B35: 4836 | C35: 2437 | D35: 2399 | F35: 5081 | G35: 2551 | H35: 2530
A36: Curridabat | B36: 44286 | C36: 21313 | D36: 22973 | F36: 45573 | G36: 21971 | H36: 23602
A37: Pérez Zeledón | B37: 98271 | C37: 49699 | D37: 48572 | F37: 103668 | G37: 52377 | H37: 51291
A38: León Cortés | B38: 8149 | C38: 4163 | D38: 3986 | F38: 8576 | G38: 4400 | H38: 4176
A39: Alajuela | B39: =SUM(B40:B54) -> 533285 | C39: =SUM(C40:C54) -> 269128 | D39: =SUM(D40:D54) -> 264157 | F39: 562017 | G39: =SUM(G40:G54) -> 283790 | H39: =SUM(H40:H54) -> 278227
A40: Alajuela | B40: =+C40+D40 -> 173149 | C40: 87161 | D40: 85988 | F40: 180977 | G40: 91057 | H40: 89920
A41: San Ramón | B41: 53851 | C41: 26770 | D41: 27081 | F41: 56654 | G41: 28288 | H41: 28366
A42: Grecia | B42: 50974 | C42: 25480 | D42: 25494 | F42: 53644 | G42: 26819 | H42: 26825
A43: San Mateo | B43: 3822 | C43: 1984 | D43: 1838 | F43: 3933 | G43: 2048 | H43: 1885
A44: Atenas | B44: 17658 | C44: 8873 | D44: 8785 | F44: 18422 | G44: 9259 | H44: 9163
A45: Naranjo | B45: 28029 | C45: 13921 | D45: 14108 | F45: 29204 | G45: 14468 | H45: 14736
A46: Palmares | B46: 25315 | C46: 12541 | D46: 12774 | F46: 26608 | G46: 13198 | H46: 13410
A47: Poás | B47: 18233 | C47: 9174 | D47: 9059 | F47: 19229 | G47: 9702 | H47: 9527
A48: Orotina | B48: 12953 | C48: 6479 | D48: 6474 | F48: 13716 | G48: 6841 | H48: 6875
A49: San Carlos | B49: 88519 | C49: 45250 | D49: 43269 | F49: 94614 | G49: 48487 | H49: 46127
A50: Zarcero | B50: 7973 | C50: 3999 | D50: 3974 | F50: 8264 | G50: 4150 | H50: 4114
A51: Valverde Vega | B51: 12819 | C51: 6382 | D51: 6437 | F51: 13325 | G51: 6644 | H51: 6681
A52: Upala | B52: 21797 | C52: 11432 | D52: 10365 | F52: 23709 | G52: 12373 | H52: 11336
A53: Los Chiles | B53: 9243 | C53: 4991 | D53: 4252 | F53: 10090 | G53: 5441 | H53: 4649
A54: Guatuso | B54: 8950 | C54: 4691 | D54: 4259 | F54: 9628 | G54: 5015 | H54: 4613
A55: Cartago | B55: =SUM(B56:B63) -> 334473 | C55: =SUM(C56:C63) -> 167036 | D55: =SUM(D56:D63) -> 167437 | F55: 351153 | G55: =SUM(G56:G63) -> 175432 | H55: =SUM(H56:H63) -> 175721
A56: Cartago | B56: =+C56+D56 -> 106013 | C56: 52424 | D56: 53589 | F56: 110767 | G56: 55008 | H56: 55759
A57: Paraíso | B57: 39836 | C57: 19941 | D57: 19895 | F57: 41975 | G57: 20982 | H57: 20993
A58: La Unión | B58: 59152 | C58: 29511 | D58: 29641 | F58: 62741 | G58: 31235 | H58: 31506
A59: Jiménez | B59: 10600 | C59: 5498 | D59: 5102 | F59: 11036 | G59: 5717 | H59: 5319
A60: Turrialba | B60: 51904 | C60: 26079 | D60: 25825 | F60: 53585 | G60: 26968 | H60: 26617
A61: Alvarado | B61: 8697 | C61: 4396 | D61: 4301 | F61: 9203 | G61: 4660 | H61: 4543
A62: Oreamuno | B62: 30700 | C62: 15159 | D62: 15541 | F62: 32496 | G62: 15952 | H62: 16544
A63: El Guarco | B63: 27571 | C63: 14028 | D63: 13543 | F63: 29350 | G63: 14910 | H63: 14440
A64: Heredia | B64: =SUM(B65:B74) -> 283771 | C64: =SUM(C65:C74) -> 139912 | D64: =SUM(D65:D74) -> 143859 | F64: =SUM(G64:H64) -> 299166 | G64: =SUM(G65:G74) -> 147640 | H64: =SUM(H65:H74) -> 151526
A65: Heredia | B65: =+C65+D65 -> 85356 | C65: 40946 | D65: 44410 | F65: 88780 | G65: 42602 | H65: 46178
A66: Barva | B66: 27552 | C66: 13533 | D66: 14019 | F66: 29225 | G66: 14370 | H66: 14855
A67: Santo Domingo | B67: 30722 | C67: 15184 | D67: 15538 | F67: 31927 | G67: 15773 | H67: 16154
A68: Santa Bárbara | B68: 22788 | C68: 11356 | D68: 11432 | F68: 24044 | G68: 11985 | H68: 12059
A69: San Rafael | B69: 29538 | C69: 14634 | D69: 14904 | F69: 31201 | G69: 15518 | H69: 15683
A70: San Isidro | B70: 13112 | C70: 6576 | D70: 6536 | F70: 14079 | G70: 7075 | H70: 7004
A71: Belén | B71: 15982 | C71: 7880 | D71: 8102 | F71: 16831 | G71: 8324 | H71: 8507
A72: Flores | B72: 13761 | C72: 6731 | D72: 7030 | F72: 14701 | G72: 7199 | H72: 7502
A73: San Pablo | B73: 18343 | C73: 8855 | D73: 9488 | F73: 19518 | G73: 9473 | H73: 10045
A74: Sarapiquí | B74: 26617 | C74: 14217 | D74: 12400 | F74: 28860 | G74: 15321 | H74: 13539
A75: Guanacaste | B75: =SUM(B76:B86) -> 203614 | C75: =SUM(C76:C86) -> 103249 | D75: =SUM(D76:D86) -> 100365 | F75: 215449 | G75: =SUM(G76:G86) -> 109215 | H75: =SUM(H76:H86) -> 106234
A76: Liberia | B76: =+C76+D76 -> 37797 | C76: 18911 | D76: 18886 | F76: 40132 | G76: 20178 | H76: 19954
A77: Nicoya | B77: 35669 | C77: 18012 | D77: 17657 | F77: 37353 | G77: 18802 | H77: 18551
A78: Santa Cruz | B78: 34567 | C78: 17669 | D78: 16898 | F78: 36784 | G78: 18804 | H78: 17980
A79: Bagaces | B79: 11245 | C79: 5717 | D79: 5528 | F79: 12127 | G79: 6189 | H79: 5938
A80: Carrillo | B80: 20050 | C80: 10219 | D80: 9831 | F80: 21466 | G80: 10947 | H80: 10519
A81: Cañas | B81: 17344 | C81: 8696 | D81: 8648 | F81: 18107 | G81: 9118 | H81: 8989
A82: Abangares | B82: 11763 | C82: 6040 | D82: 5723 | F82: 12350 | G82: 6273 | H82: 6077
A83: Tilarán | B83: 13309 | C83: 6702 | D83: 6607 | F83: 13769 | G83: 6904 | H83: 6865
A84: Nandayure | B84: 7489 | C84: 3909 | D84: 3580 | F84: 7834 | G84: 4077 | H84: 3757
A85: La Cruz | B85: 9262 | C85: 4732 | D85: 4530 | F85: 10188 | G85: 5164 | H85: 5024
A86: Hojancha | B86: 5119 | C86: 2642 | D86: 2477 | F86: 5339 | G86: 2759 | H86: 2580
A87: Puntarenas | B87: =SUM(B88:B98) -> 265197 | C87: =SUM(C88:C98) -> 136989 | D87: =SUM(D88:D98) -> 128208 | F87: 280534 | G87: =SUM(G88:G98) -> 144745 | H87: =SUM(H88:H98) -> 135789
A88: Puntarenas | B88: =+C88+D88 -> 77238 | C88: 39656 | D88: 37582 | F88: 80674 | G88: 41509 | H88: 39165
A89: Esparza | B89: 18825 | C89: 9370 | D89: 9455 | F89: 19955 | G89: 9915 | H89: 10040
A90: Buenos Aires | B90: 27392 | C90: 14450 | D90: 12942 | F90: 29377 | G90: 15413 | H90: 13964
A91: Montes de Oro | B91: 8750 | C91: 4337 | D91: 4413 | F91: 9297 | G91: 4651 | H91: 4646
A92: Osa | B92: 18664 | C92: 9964 | D92: 8700 | F92: 19675 | G92: 10438 | H92: 9237
A93: Aguirre | B93: 16693 | C93: 8909 | D93: 7784 | F93: 17592 | G93: 9356 | H93: 8236
A94: Golfito | B94: 25019 | C94: 13054 | D94: 11965 | F94: 26405 | G94: 13807 | H94: 12598
A95: Coto Brus | B95: 26188 | C95: 13291 | D95: 12897 | F95: 27222 | G95: 13792 | H95: 13430
A96: Parrita | B96: 9776 | C96: 5118 | D96: 4658 | F96: 10614 | G96: 5505 | H96: 5109
A97: Corredores | B97: 27936 | C97: 14168 | D97: 13768 | F97: 30157 | G97: 15248 | H97: 14909
A98: Garabito | B98: 8716 | C98: 4672 | D98: 4044 | F98: 9566 | G98: 5111 | H98: 4455
A99: Limón | B99: =SUM(B100:B105) -> 228491 | C99: =SUM(C100:C105) -> 118700 | D99: =SUM(D100:D105) -> 109791 | F99: 243146 | G99: =SUM(G100:G105) -> 126180 | H99: =SUM(H100:H105) -> 116966
A100: Limón | B100: =+C100+D100 -> 61603 | C100: 31186 | D100: 30417 | F100: 63740 | G100: 32241 | H100: 31499
A101: Pococí | B101: 75016 | C101: 39302 | D101: 35714 | F101: 80952 | G101: 42367 | H101: 38585
A102: Siquirres | B102: 34544 | C102: 18170 | D102: 16374 | F102: 36572 | G102: 19215 | H102: 17357
A103: Talamanca | B103: 15458 | C103: 8212 | D103: 7246 | F103: 16950 | G103: 8988 | H103: 7962
A104: Matina | B104: 18313 | C104: 9640 | D104: 8673 | F104: 19433 | G104: 10209 | H104: 9224
A105: Guácimo | B105: 23557 | C105: 12190 | D105: 11367 | F105: 25499 | G105: 13160 | H105: 12339
A106: En el extranjero 1/ | B106: =SUM(C106:D106) -> 708 | C106: 338 | D106: 370 | F106: =SUM(G106:H106) -> 6114 | G106: 3106 | H106: 3008
A109: 1/ Costarricenses inscritos(as) que pueden ejercer el voto en extranjero para designar los puestos de Presidencia y Vicepresidencias, así como en consultas populares de orden nacional, según el artículo 187 del Código Electoral.
A110: Fuente: Sección Padrón Electoral del Tribunal Supremo de Elecciones.

Sheet 3
A1: CUADRO 3
A2: COSTA RICA: ELECTORADO POR PROVINCIA, SEGÚN SEXO Y
A3: GRUPO DE EDAD 1/, AL 31 DE DICIEMBRE DE 2012
A5: Sexo y grupo de edad | B5: Total | C5: San José | D5: Alajuela | E5: Cartago | F5: Heredia | G5: Guanacaste | H5: Puntarenas | I5: Limón | J5: En el extranjero 2/
A7: Costa Rica | B7: =B24+B41 -> 3003922 | C7: 1046343 | D7: 562017 | E7: 351153 | F7: 299166 | G7: 215449 | H7: 280534 | I7: 243146 | J7: 6114
A8: 16 - 19 | B8: 152673 | C8: 47967 | D8: 29660 | E8: 18027 | F8: 14436 | G8: 11461 | H8: 15792 | I8: 15013 | J8: 317
A9: 20 - 24 | B9: 395002 | C9: 130151 | D9: 76434 | E9: 47208 | F9: 37110 | G9: 29157 | H9: 38836 | I9: 35517 | J9: 589
A10: 25 - 29 | B10: 383862 | C10: =C27+C45 -> 124096 | D10: 72780 | E10: 45061 | F10: 37503 | G10: 27287 | H10: 36898 | I10: 33285 | J10: 654
A11: 30 - 34 | B11: 335475 | C11: 106990 | D11: 60968 | E11: 39169 | F11: 34985 | G11: 23891 | H11: 31189 | I11: 26809 | J11: 876
A12: 35 - 39 | B12: 280689 | C12: 93931 | D12: 50832 | E12: 33662 | F12: 29184 | G12: 20047 | H12: 26785 | I12: 23563 | J12: 799
A13: 40 - 44 | B13: 269578 | C13: 93027 | D13: 50454 | E13: 32846 | F13: 27226 | G13: 19240 | H13: 25721 | I13: 22791 | J13: 728
A14: 45 - 49 | B14: 275024 | C14: 92529 | D14: 52638 | E14: 32946 | F14: 27738 | G14: 19363 | H14: 25248 | I14: 21678 | J14: 679
A15: 50 - 54 | B15: 246388 | C15: 81037 | D15: 46414 | E15: 28519 | F15: 25096 | G15: 16980 | H15: 21827 | I15: 18630 | J15: 519
A16: 55 - 59 | B16: 198898 | C16: 64567 | D16: 36065 | E16: 22413 | F16: 20508 | G16: 13781 | H16: 17635 | I16: 14977 | J16: 392
A17: 60 - 64 | B17: 147447 | C17: 47897 | D17: 26448 | E17: 16106 | F17: 15002 | G17: 10224 | H17: 12949 | I17: 10784 | J17: 241
A18: 65 - 69 | B18: 108560 | C18: 35166 | D18: 20232 | E18: 12068 | F18: 10599 | G18: 7727 | H18: 9351 | I18: 7311 | J18: 139
A19: 70 - 74 | B19: 79241 | C19: 25865 | D19: 15156 | E19: 8892 | F19: 7472 | G19: 5979 | H19: 7139 | I19: 5171 | J19: 78
A20: 75 - 79 | B20: 57606 | C20: 18720 | D20: 10607 | E20: 6451 | F20: 5360 | G20: 4308 | H20: 5106 | I20: 3575 | J20: 48
A21: 80 - 84 | B21: 39779 | C21: 15006 | D21: 7149 | E21: 4397 | F21: 3769 | G21: 3072 | H21: 3320 | I21: 2172 | J21: 28
A22: 85 y más | B22: 33700 | C22: =C39+C56 -> 13387 | D22: 6180 | E22: 3388 | F22: 3178 | G22: 2932 | H22: 2738 | I22: 1870 | J22: 27
A24: Hombres | B24: =SUM(C24:J24) -> 1500951 | C24: =SUM(C25:C39) -> 510843 | D24: 283790 | E24: 175432 | F24: 147640 | G24: 109215 | H24: 144745 | I24: 126180 | J24: =SUM(J25:J39) -> 3106
A25: 16 - 19 | B25: =SUM(C25:J25) -> 77837 | C25: 24341 | D25: 15238 | E25: 9139 | F25: 7364 | G25: 5853 | H25: 8119 | I25: 7634 | J25: 149
A26: 20 - 24 | B26: =SUM(C26:J26) -> 202005 | C26: 66162 | D26: 39442 | E26: 24321 | F26: 19039 | G26: 14833 | H26: 19745 | I26: 18174 | J26: 289
A27: 25 - 29 | B27: 195574 | C27: 65901 | D27: 37558 | E27: 23057 | F27: 18964 | G27: 13950 | H27: 18857 | I27: 16915 | J27: 372
A28: 30 - 34 | B28: 169577 | C28: 59393 | D28: 31261 | E28: 19750 | F28: 17499 | G28: 11998 | H28: 15789 | I28: 13399 | J28: 488
A29: 35 - 39 | B29: 141643 | C29: 48220 | D29: 25602 | E29: 16875 | F29: 14640 | G29: 10110 | H29: 13710 | I29: 12064 | J29: 422
A30: 40 - 44 | B30: 135206 | C30: 44861 | D30: 25385 | E30: 16237 | F30: 13537 | G30: 9786 | H30: 13263 | I30: 11772 | J30: 365
A31: 45 - 49 | B31: 137414 | C31: 46568 | D31: 26281 | E31: 16416 | F31: 13591 | G31: 9800 | H31: 13046 | I31: 11357 | J31: 355
A32: 50 - 54 | B32: 122307 | C32: 42442 | D32: 23267 | E32: 14187 | F32: 12258 | G32: 8671 | H32: 11420 | I32: 9807 | J32: 255
A33: 55 - 59 | B33: 98009 | C33: 34532 | D33: 18114 | E33: 10979 | F33: 9901 | G33: 7042 | H33: 9184 | I33: 8082 | J33: 175
A34: 60 - 64 | B34: 71907 | C34: 25658 | D34: 13191 | E34: 7805 | F34: 7135 | G34: 5197 | H34: 6857 | I34: 5956 | J34: 108
A35: 65 - 69 | B35: 52725 | C35: 18894 | D35: 9960 | E35: 5868 | F35: 5042 | G35: 3837 | H35: 4996 | I35: 4066 | J35: 62
A36: 70 - 74 | B36: 38016 | C36: 13082 | D36: 7380 | E36: 4316 | F36: 3437 | G36: 3070 | H36: 3833 | I36: 2866 | J36: 32
A37: 75 - 79 | B37: 26692 | C37: 9368 | D37: 5051 | E37: 3026 | F37: 2383 | G37: 2154 | H37: 2722 | I37: 1973 | J37: 15
A38: 80 - 84 | B38: 17883 | C38: 6520 | D38: 3286 | E38: 2059 | F38: 1600 | G38: 1514 | H38: 1736 | I38: 1159 | J38: 9
A39: 85 y más | B39: 14156 | C39: 4901 | D39: 2774 | E39: 1397 | F39: 1250 | G39: 1400 | H39: 1468 | I39: 956 | J39: 10
A41: Mujeres | B41: =SUM(C41:J41) -> 1502971 | C41: =SUM(C42:C56) -> 535500 | D41: =SUM(D42:D56) -> 278227 | E41: 175721 | F41: 151526 | G41: 106234 | H41: 135789 | I41: 116966 | J41: =SUM(J42:J56) -> 3008
A42: 16 - 19 | B42: =SUM(C42:J42) -> 74836 | C42: 23626 | D42: 14422 | E42: 8888 | F42: 7072 | G42: 5608 | H42: 7673 | I42: 7379 | J42: 168
A43: 20 - 24 | B43: =SUM(C43:J43) -> 192997 | C43: 63989 | D43: 36992 | E43: 22887 | F43: 18071 | G43: 14324 | H43: 19091 | I43: 17343 | J43: 300
A44: 25 - 29 | B44: 188288 | C44: 64493 | D44: 35222 | E44: 22004 | F44: 18539 | G44: 13337 | H44: 18041 | I44: 16370 | J44: 282
A45: 30 - 34 | B45: 165898 | C45: 58195 | D45: 29707 | E45: 19419 | F45: 17486 | G45: 11893 | H45: 15400 | I45: 13410 | J45: 388
A46: 35 - 39 | B46: 139046 | C46: 47597 | D46: 25230 | E46: 16787 | F46: 14544 | G46: 9937 | H46: 13075 | I46: 11499 | J46: 377
A47: 40 - 44 | B47: 134372 | C47: 45711 | D47: 25069 | E47: 16609 | F47: 13689 | G47: 9454 | H47: 12458 | I47: 11019 | J47: 363
A48: 45 - 49 | B48: 137610 | C48: 48166 | D48: 26357 | E48: 16530 | F48: 14147 | G48: 9563 | H48: 12202 | I48: 10321 | J48: 324
A49: 50 - 54 | B49: 124081 | C49: 45961 | D49: 23147 | E49: 14332 | F49: 12838 | G49: 8309 | H49: 10407 | I49: 8823 | J49: 264
A50: 55 - 59 | B50: 100889 | C50: 38595 | D50: 17951 | E50: 11434 | F50: 10607 | G50: 6739 | H50: 8451 | I50: 6895 | J50: 217
A51: 60 - 64 | B51: 75540 | C51: 30035 | D51: 13257 | E51: 8301 | F51: 7867 | G51: 5027 | H51: 6092 | I51: 4828 | J51: 133
A52: 65 - 69 | B52: 55835 | C52: 22239 | D52: 10272 | E52: 6200 | F52: 5557 | G52: 3890 | H52: 4355 | I52: 3245 | J52: 77
A53: 70 - 74 | B53: 41225 | C53: 16272 | D53: 7776 | E53: 4576 | F53: 4035 | G53: 2909 | H53: 3306 | I53: 2305 | J53: 46
A54: 75 - 79 | B54: 30914 | C54: 12783 | D54: 5556 | E54: 3425 | F54: 2977 | G54: 2154 | H54: 2384 | I54: 1602 | J54: 33
A55: 80 - 84 | B55: 21896 | C55: 9352 | D55: 3863 | E55: 2338 | F55: 2169 | G55: 1558 | H55: 1584 | I55: 1013 | J55: 19
A56: 85 y más | B56: =SUM(C56:J56) -> 19544 | C56: 8486 | D56: 3406 | E56: 1991 | F56: 1928 | G56: 1532 | H56: 1270 | I56: 914 | J56: 17
A59: 1/ Incluye las personas menores que tramitaron su cédula y cumplirán 18 años de edad a la fecha de la próxima elección de Presidente y Vicepresidentes de la República, según el artículo 76 de la Ley 3504: "Ley Orgánica del Tribunal Supremo de Elecciones y del Registro Civil".
A60: 2/ Costarricenses inscritos(as) que pueden ejercer el voto en extranjero para designar los puestos de Presidencia y Vicepresidencias, así como en consultas populares de orden nacional, según el artículo 187 del Código Electoral.
A61: Fuente: Sección Padrón Electoral del Tribunal Supremo de Elecciones.

Sheet G1
I2: GRÁFICO 1
A3: DISTRIBUCIÓN DEL TOTAL DE ELECTORES POR SEXO Y GRUPOS QUINQUENALES DE EDAD, DICIEMBRE 2012 | I3: COSTA RICA: PORCENTAJE DEL ELECTORADO, POR SEXO Y GRUPO DE EDAD
I4: AL 31 DE DICIEMBRE DE 2012
A6: GRUPOS DE EDAD | B6: ELECTORES | F6: PORCENTAJE
B7: Total | C7: Hombres | D7: Mujeres | F7: Hombres | G7: Mujeres
B9: =SUM(B11:B25) -> 3003922 | C9: =SUM(C11:C25) -> 1500951 | D9: =SUM(D11:D25) -> 1502971
A11: Menos de 20 | B11: =SUM(C11:D11) -> 152673 | C11: ='3'!B25 -> 77837 | D11: ='3'!B42 -> 74836 | F11: =(C11/($C$9))*-100 -> -5.185845507 | G11: =(D11/($C$9))*100 -> 4.985905603
A12: 20 a 24 | B12: =SUM(C12:D12) -> 395002 | C12: ='3'!B26 -> 202005 | D12: ='3'!B43 -> 192997 | F12: =(C12/($C$9))*-100 -> -13.45846733 | G12: =(D12/($C$9))*100 -> 12.8583145
A13: 25 a 29 | B13: 383862 | C13: ='3'!B27 -> 195574 | D13: ='3'!B44 -> 188288 | F13: =(C13/($C$9))*-100 -> -13.03000564 | G13: 12.54458007
A14: 30 a 34 | B14: 335475 | C14: ='3'!B28 -> 169577 | D14: ='3'!B45 -> 165898 | F14: -11.29797042 | G14: 11.05285915
A15: 35 a 39 | B15: 280689 | C15: ='3'!B29 -> 141643 | D15: ='3'!B46 -> 139046 | F15: -9.436883682 | G15: 9.263860046
A16: 40 a 44 | B16: 269578 | C16: ='3'!B30 -> 135206 | D16: ='3'!B47 -> 134372 | F16: -9.008022247 | G16: 8.952457475
A17: 45 a 49 | B17: 275024 | C17: ='3'!B31 -> 137414 | D17: ='3'!B48 -> 137610 | F17: -9.155128982 | G17: 9.168187369
A18: 50 a 54 | B18: 246388 | C18: ='3'!B32 -> 122307 | D18: ='3'!B49 -> 124081 | F18: -8.148633766 | G18: 8.266825499
A19: 55 a 59 | B19: 198898 | C19: ='3'!B33 -> 98009 | D19: ='3'!B50 -> 100889 | F19: -6.529793444 | G19: 6.721671793
A20: 60 a 64 | B20: 147447 | C20: ='3'!B34 -> 71907 | D20: ='3'!B51 -> 75540 | F20: -4.790762656 | G20: 5.032809199
A21: 65 a 69 | B21: 108560 | C21: ='3'!B35 -> 52725 | D21: ='3'!B52 -> 55835 | F21: -3.512772902 | G21: 3.719974869
A22: 70 a 74 | B22: 79241 | C22: ='3'!B36 -> 38016 | D22: ='3'!B53 -> 41225 | F22: -2.532794208 | G22: 2.746591994
A23: 75 a 79 | B23: 57606 | C23: ='3'!B37 -> 26692 | D23: ='3'!B54 -> 30914 | F23: -1.7783392 | G23: 2.059627529
A24: 80 a 84 | B24: 39779 | C24: ='3'!B38 -> 17883 | D24: ='3'!B55 -> 21896 | F24: -1.191444624 | G24: 1.458808449
A25: 85 y más | B25: 33700 | C25: ='3'!B39 -> 14156 | D25: ='3'!B56 -> 19544 | F25: -0.9431353855 | G25: 1.302107797
A28: Al pasar a imprenta y web, se debe pegar como valores para
A29: romper el vinculo con la tabla de datos
I31: Fuente: Cuadro 3.

Sheet 4
A1: CUADRO 4
A2: ELECTORADO EN EL PADRÓN INSCRITO EN EL EXTRANJERO1/
A3: POR SEXO, SEGÚN CONTINENTE Y PAÍS
A4: AL 31 DE DICIEMBRE 2012
A6: Continente y país | B6: Total | D6: Hombres | F6: Mujeres
B7: Absoluto | C7: % | D7: Absoluto | E7: % | F7: Absoluto | G7: %
A9: Total | B9: =B11+B34+B47+B56 -> 6114 | C9: =B9/B$9*100 -> 100 | D9: =D11+D34+D47+D56 -> 3106 | E9: =D9/D$9*100 -> 100 | F9: =F11+F34+F47+F56 -> 3008 | G9: =F9/F$9*100 -> 100
A11: América | B11: =D11+F11 -> 5453 | C11: =B11/B$9*100 -> 89.18874714 | D11: =SUM(D12:D32) -> 2813 | E11: =D11/D$9*100 -> 90.5666452 | F11: =SUM(F12:F32) -> 2640 | G11: =F11/F$9*100 -> 87.76595745
A12: Estados Unidos | B12: 4110 | C12: 67.22276742 | D12: 2147 | E12: 69.1242756 | F12: 1963 | G12: 65.25930851
A13: Canadá | B13: 263 | C13: 4.301602879 | D13: 152 | E13: 4.893754024 | F13: 111 | G13: 3.690159574
A14: México | B14: 224 | C14: 3.663722604 | D14: 93 | E14: 2.994204765 | F14: 131 | G14: 4.355053191
A15: Guatemala | B15: 115 | C15: 1.880929015 | D15: 49 | E15: 1.577591758 | F15: 66 | G15: 2.194148936
A16: Venezuela | B16: 104 | C16: 1.701014066 | D16: 43 | E16: 1.384417257 | F16: 61 | G16: 2.027925532
A17: Honduras | B17: 93 | C17: 1.521099117 | D17: 51 | E17: 1.641983258 | F17: 42 | G17: 1.396276596
A18: El Salvador | B18: 88 | C18: 1.439319594 | D18: 42 | E18: 1.352221507 | F18: 46 | G18: 1.529255319
A19: Panamá | B19: 83 | C19: 1.357540072 | D19: 42 | E19: 1.352221507 | F19: 41 | G19: 1.363031915
A20: Colombia | B20: 70 | C20: 1.144913314 | D20: 34 | E20: 1.094655505 | F20: 36 | G20: 1.196808511
A21: Nicaragua | B21: 63 | C21: 1.030421982 | D21: 25 | E21: 0.804893754 | F21: 38 | G21: 1.263297872
A22: Argentina | B22: 58 | C22: 0.9486424599 | D22: 33 | E22: 1.062459755 | F22: 25 | G22: 0.8311170213
A23: Chile | B23: 45 | C23: 0.7360157017 | D23: 23 | E23: 0.7405022537 | F23: 22 | G23: 0.7313829787
A24: República Dominicana | B24: 45 | C24: 0.7360157017 | D24: 27 | E24: 0.8692852543 | F24: 18 | G24: 0.5984042553
A25: Perú | B25: 30 | C25: 0.4906771344 | D25: 18 | E25: 0.5795235029 | F25: 12 | G25: 0.3989361702
A26: Ecuador | B26: 20 | C26: 0.3271180896 | D26: 10 | E26: 0.3219575016 | F26: 10 | G26: 0.3324468085
A27: Cuba | B27: 13 | C27: 0.2126267583 | D27: 8 | E27: 0.2575660013 | F27: 5 | G27: 0.1662234043
A28: Brasil | B28: 11 | C28: 0.1799149493 | D28: 8 | E28: 0.2575660013 | F28: 3 | G28: 0.09973404255
A29: Uruguay | B29: 8 | C29: 0.1308472359 | D29: 4 | E29: 0.1287830006 | F29: 4 | G29: 0.1329787234
A30: Bolivia | B30: 7 | C30: 0.1144913314 | D30: 4 | E30: 0.1287830006 | F30: 3 | G30: 0.09973404255
A31: Trinidad y Tobago | B31: 2 | C31: 0.03271180896 | D31: 0 | E31: 0 | F31: 2 | G31: 0.0664893617
A32: Belice | B32: 1 | C32: 0.01635590448 | D32: 0 | E32: 0 | F32: 1 | G32: 0.03324468085
A34: Europa | B34: =D34+F34 -> 581 | C34: =B34/B$9*100 -> 9.502780504 | D34: =SUM(D35:D45) -> 263 | E34: =D34/D$9*100 -> 8.467482292 | F34: =SUM(F35:F45) -> 318 | G34: =F34/F$9*100 -> 10.57180851
A35: España | B35: 189 | C35: 3.091265947 | D35: 106 | E35: 3.412749517 | F35: 83 | G35: 2.759308511
A36: Francia | B36: 100 | C36: 1.635590448 | D36: 39 | E36: 1.255634256 | F36: 61 | G36: 2.027925532
A37: Alemania | B37: 63 | C37: 1.030421982 | D37: 31 | E37: 0.998068255 | F37: 32 | G37: 1.063829787
A38: Suiza | B38: 57 | C38: 0.9322865554 | D38: 14 | E38: 0.4507405023 | F38: 43 | G38: 1.429521277
A39: Reino Unido | B39: 36 | C39: 0.5888125613 | D39: 19 | E39: 0.6117192531 | F39: 17 | G39: 0.5651595745
A40: Holanda | B40: 32 | C40: 0.5233889434 | D40: 9 | E40: 0.2897617514 | F40: 23 | G40: 0.7646276596
A41: Italia | B41: 30 | C41: 0.4906771344 | D41: 9 | E41: 0.2897617514 | F41: 21 | G41: 0.6981382979
A42: Bélgica | B42: 26 | C42: 0.4252535165 | D42: 13 | E42: 0.4185447521 | F42: 13 | G42: 0.4321808511
A43: Austria | B43: 20 | C43: 0.3271180896 | D43: 10 | E43: 0.3219575016 | F43: 10 | G43: 0.3324468085
A44: Rusia | B44: 16 | C44: 0.2616944717 | D44: 9 | E44: 0.2897617514 | F44: 7 | G44: 0.232712766
A45: Noruega | B45: 12 | C45: 0.1962708538 | D45: 4 | E45: 0.1287830006 | F45: 8 | G45: 0.2659574468
A47: Asia | B47: =D47+F47 -> 75 | C47: =B47/B$9*100 -> 1.226692836 | D47: =SUM(D48:D54) -> 28 | E47: =D47/D$9*100 -> 0.9014810045 | F47: =SUM(F48:F54) -> 47 | G47: =F47/F$9*100 -> 1.5625
A48: Israel | B48: 27 | C48: 0.441609421 | D48: 10 | E48: 0.3219575016 | F48: 17 | G48: 0.5651595745
A49: China | B49: 17 | C49: 0.2780503762 | D49: 9 | E49: 0.2897617514 | F49: 8 | G49: 0.2659574468
A50: Japón | B50: 17 | C50: 0.2780503762 | D50: 5 | E50: 0.1609787508 | F50: 12 | G50: 0.3989361702
A51: Singapur | B51: 10 | C51: 0.1635590448 | D51: 4 | E51: 0.1287830006 | F51: 6 | G51: 0.1994680851
A52: Qatar | B52: 2 | C52: 0.03271180896 | D52: 0 | E52: 0 | F52: 2 | G52: 0.0664893617
A53: India | B53: 1 | C53: 0.01635590448 | D53: 0 | E53: 0 | F53: 1 | G53: 0.03324468085
A54: Corea | B54: 1 | C54: 0.01635590448 | D54: 0 | E54: 0 | F54: 1 | G54: 0.03324468085
A56: Oceanía | B56: =D56+F56 -> 5 | C56: =B56/B$9*100 -> 0.08177952241 | D56: =SUM(D57) -> 2 | E56: =D56/D$9*100 -> 0.06439150032 | F56: =SUM(F57) -> 3 | G56: =F56/F$9*100 -> 0.09973404255
A57: Australia | B57: =D57+F57 -> 5 | C57: =B57/B$9*100 -> 0.08177952241 | D57: 2 | E57: =D57/D$9*100 -> 0.06439150032 | F57: 3 | G57: =F57/F$9*100 -> 0.09973404255
A60: 1/ Costarricenses inscritos(as) que pueden ejercer el voto en extranjero para designar los puestos de Presidencia y Vicepresidencias, así como en consultas populares de orden nacional, según el artículo 187 del Código Electoral.
A61: Fuente: Sección Padrón Electoral del Tribunal Supremo de Elecciones.

Sheet 5
A1: CUADRO 5
A2: COSTA RICA: TOTAL DE ELECTORES(AS) NATURALIZADOS(AS), POR PAÍS DE ORIGEN
A3: SEGÚN SEXO Y GRUPO DE EDAD, AL 31 DE DICIEMBRE DE 2012 1/
A5: SEXO Y GRUPO DE EDAD | B5: País de origen
B6: Total | C6: Nicaragua | D6: Colombia | E6: El Salvador | F6: Cuba | G6: China | H6: Perú | I6: Panamá | J6: Resto de países
A8: Costa Rica | B8: =SUM(B9:B23) -> 46810 | C8: =SUM(C9:C23) -> 23660 | D8: 4506 | E8: 3366 | F8: 2104 | G8: 1787 | H8: 1471 | I8: 1334 | J8: =SUM(J9:J23) -> 8582
A9: 16 - 19 | B9: =SUM(C9:J9) -> 285 | C9: =+C26+C43 -> 99 | D9: =+D26+D43 -> 105 | E9: 3 | F9: 25 | G9: 7 | H9: 5 | I9: 0 | J9: 41
A10: 20 - 24 | B10: =SUM(C10:J10) -> 810 | C10: =+C27+C44 -> 334 | D10: 166 | E10: 12 | F10: 73 | G10: 16 | H10: 28 | I10: 5 | J10: 176
A11: 25 - 29 | B11: 1744 | C11: 919 | D11: 286 | E11: 21 | F11: 79 | G11: 82 | H11: 70 | I11: 18 | J11: 269
A12: 30 - 34 | B12: 3831 | C12: 1951 | D12: 626 | E12: 213 | F12: 125 | G12: 184 | H12: 123 | I12: 23 | J12: 586
A13: 35 - 39 | B13: 5329 | C13: 2690 | D13: 672 | E13: 360 | F13: 225 | G13: 199 | H13: 192 | I13: 78 | J13: 913
A14: 40 - 44 | B14: 6050 | C14: 3090 | D14: 661 | E14: 442 | F14: 277 | G14: 224 | H14: 194 | I14: 162 | J14: 1000
A15: 45 - 49 | B15: 5767 | C15: 2763 | D15: 660 | E15: 414 | F15: 306 | G15: 194 | H15: 194 | I15: 201 | J15: 1035
A16: 50 - 54 | B16: 4870 | C16: 2230 | D16: 496 | E16: 432 | F16: 258 | G16: 160 | H16: 205 | I16: 177 | J16: 912
A17: 55 - 59 | B17: 4373 | C17: 2058 | D17: 309 | E17: 487 | F17: 201 | G17: 164 | H17: 163 | I17: 157 | J17: 834
A18: 60 - 64 | B18: 3654 | C18: 1687 | D18: 217 | E18: 360 | F18: 148 | G18: 174 | H18: 129 | I18: 139 | J18: 800
A19: 65 - 69 | B19: 2968 | C19: 1499 | D19: 123 | E19: 267 | F19: 124 | G19: 120 | H19: 78 | I19: 131 | J19: 626
A20: 70 - 74 | B20: 2261 | C20: 1237 | D20: 78 | E20: 143 | F20: 93 | G20: 92 | H20: 42 | I20: 75 | J20: 501
A21: 75 - 79 | B21: 1881 | C21: 1128 | D21: 57 | E21: 107 | F21: 62 | G21: 63 | H21: 24 | I21: 66 | J21: 374
A22: 80 - 84 | B22: 1509 | C22: 944 | D22: 32 | E22: 63 | F22: 45 | G22: 66 | H22: 13 | I22: 65 | J22: 281
A23: 85 y más | B23: 1478 | C23: 1031 | D23: 18 | E23: 42 | F23: 63 | G23: 42 | H23: 11 | I23: 37 | J23: 234
A25: Hombres | B25: =SUM(B26:B40) -> 21495 | C25: =SUM(C26:C40) -> 10230 | D25: =SUM(D26:D40) -> 2109 | E25: 1450 | F25: 1163 | G25: 950 | H25: 811 | I25: 594 | J25: 4188
A26: 16 - 19 | B26: =SUM(C26:J26) -> 153 | C26: 49 | D26: 58 | E26: 1 | F26: 19 | G26: 3 | H26: 3 | I26: 0 | J26: 20
A27: 20 - 24 | B27: =SUM(C27:J27) -> 397 | C27: 159 | D27: 82 | E27: 7 | F27: 39 | G27: 8 | H27: 13 | I27: 3 | J27: 86
A28: 25 - 29 | B28: 727 | C28: 329 | D28: 128 | E28: 13 | F28: 39 | G28: 50 | H28: 33 | I28: 4 | J28: 131
A29: 30 - 34 | B29: 1630 | C29: 753 | D29: 283 | E29: 108 | F29: 58 | G29: 115 | H29: 61 | I29: 9 | J29: 243
A30: 35 - 39 | B30: 2287 | C30: 1113 | D30: 278 | E30: 150 | F30: 104 | G30: 104 | H30: 101 | I30: 34 | J30: 403
A31: 40 - 44 | B31: 2885 | C31: 1442 | D31: 320 | E31: 206 | F31: 159 | G31: 122 | H31: 94 | I31: 79 | J31: 463
A32: 45 - 49 | B32: 2663 | C32: 1225 | D32: 308 | E32: 173 | F32: 179 | G32: 96 | H32: 103 | I32: 91 | J32: 488
A33: 50 - 54 | B33: 2059 | C33: 812 | D33: 249 | E33: 171 | F33: 150 | G33: 79 | H33: 110 | I33: 72 | J33: 416
A34: 55 - 59 | B34: 1859 | C34: 760 | D34: 135 | E34: 178 | F34: 125 | G34: 91 | H34: 101 | I34: 65 | J34: 404
A35: 60 - 64 | B35: 1747 | C35: 741 | D35: 106 | E35: 154 | F35: 89 | G35: 92 | H35: 78 | I35: 54 | J35: 433
A36: 65 - 69 | B36: 1519 | C36: 706 | D36: 70 | E36: 118 | F36: 76 | G36: 62 | H36: 54 | I36: 68 | J36: 365
A37: 70 - 74 | B37: 1158 | C37: 600 | D37: 42 | E37: 79 | F37: 55 | G37: 36 | H37: 29 | I37: 38 | J37: 279
A38: 75 - 79 | B38: 902 | C38: 526 | D38: 30 | E38: 44 | F38: 28 | G38: 38 | H38: 14 | I38: 32 | J38: 190
A39: 80 - 84 | B39: 764 | C39: 478 | D39: 14 | E39: 34 | F39: 16 | G39: 33 | H39: 11 | I39: 25 | J39: 153
A40: 85 y más | B40: 745 | C40: 537 | D40: 6 | E40: 14 | F40: 27 | G40: 21 | H40: 6 | I40: 20 | J40: 114
A42: Mujeres | B42: =SUM(B43:B57) -> 25315 | C42: 13430 | D42: 2397 | E42: 1916 | F42: 941 | G42: 837 | H42: 660 | I42: 740 | J42: 4394
A43: 16 - 19 | B43: =SUM(C43:J43) -> 132 | C43: 50 | D43: 47 | E43: 2 | F43: 6 | G43: 4 | H43: 2 | I43: 0 | J43: 21
A44: 20 - 24 | B44: 413 | C44: 175 | D44: 84 | E44: 5 | F44: 34 | G44: 8 | H44: 15 | I44: 2 | J44: 90
A45: 25 - 29 | B45: 1017 | C45: 590 | D45: 158 | E45: 8 | F45: 40 | G45: 32 | H45: 37 | I45: 14 | J45: 138
A46: 30 - 34 | B46: 2201 | C46: 1198 | D46: 343 | E46: 105 | F46: 67 | G46: 69 | H46: 62 | I46: 14 | J46: 343
A47: 35 - 39 | B47: 3042 | C47: 1577 | D47: 394 | E47: 210 | F47: 121 | G47: 95 | H47: 91 | I47: 44 | J47: 510
A48: 40 - 44 | B48: 3165 | C48: 1648 | D48: 341 | E48: 236 | F48: 118 | G48: 102 | H48: 100 | I48: 83 | J48: 537
A49: 45 - 49 | B49: 3104 | C49: 1538 | D49: 352 | E49: 241 | F49: 127 | G49: 98 | H49: 91 | I49: 110 | J49: 547
A50: 50 - 54 | B50: 2811 | C50: 1418 | D50: 247 | E50: 261 | F50: 108 | G50: 81 | H50: 95 | I50: 105 | J50: 496
A51: 55 - 59 | B51: 2514 | C51: 1298 | D51: 174 | E51: 309 | F51: 76 | G51: 73 | H51: 62 | I51: 92 | J51: 430
A52: 60 - 64 | B52: 1907 | C52: 946 | D52: 111 | E52: 206 | F52: 59 | G52: 82 | H52: 51 | I52: 85 | J52: 367
A53: 65 - 69 | B53: 1449 | C53: 793 | D53: 53 | E53: 149 | F53: 48 | G53: 58 | H53: 24 | I53: 63 | J53: 261
A54: 70 - 74 | B54: 1103 | C54: 637 | D54: 36 | E54: 64 | F54: 38 | G54: 56 | H54: 13 | I54: 37 | J54: 222
A55: 75 - 79 | B55: 979 | C55: 602 | D55: 27 | E55: 63 | F55: 34 | G55: 25 | H55: 10 | I55: 34 | J55: 184
A56: 80 - 84 | B56: 745 | C56: 466 | D56: 18 | E56: 29 | F56: 29 | G56: 33 | H56: 2 | I56: 40 | J56: 128
A57: 85 y más | B57: 733 | C57: 494 | D57: 12 | E57: 28 | F57: 36 | G57: 21 | H57: 5 | I57: 17 | J57: 120
A60: 1/ Incluye las personas menores que tramitaron su cédula y cumplirán 18 años años de edad a la fecha de la próxima elección de Presidente y Vicepresidentes de la República, según el artículo 76 de la Ley 3504: "Ley Orgánica del Tribunal Supremo de Elecciones y del Registro Civil".
A61: Fuente: Sección Padrón Electoral del Tribunal Supremo de Elecciones.

Sheet G2
A2: Costa Rica | B2: ='3'!B7 -> 3003922 | E2: GRÁFICO 2
A3: Resto de países | B3: ='5'!J8 -> 8582 | C3: =+B3/$B$11*100 -> 18.33368938 | E3: COSTA RICA: PORCENTAJE DE ELECTORES(AS) NATURALIZADOS(AS)
A4: Panamá | B4: ='5'!I8 -> 1334 | C4: 2.849818415 | E4: POR PAÍS DE ORIGEN, AL 31 DE DICIEMBRE DE 2012
A5: Perú | B5: ='5'!H8 -> 1471 | C5: 3.142490921
A6: China | B6: ='5'!G8 -> 1787 | C6: 3.81756035
A7: Cuba | B7: ='5'!F8 -> 2104 | C7: 4.494766076
A8: El Salvador | B8: ='5'!E8 -> 3366 | C8: 7.190771203
A9: Colombia | B9: ='5'!D8 -> 4506 | C9: 9.626148259
A10: Nicaragua | B10: ='5'!C8 -> 23660 | C10: =+B10/$B$11*100 -> 50.54475539
B11: =SUM(B3:B10) -> 46810
A13: Los datos se copian del cuadro respectivo
A14: ya que el total de cada país puede variar | C14: =SUM(D14:R14) -> 0
A15: y por tanto la posición dentros del gráfico
C16: =SUM(D16:R16) -> 0
C18: =SUM(D18:R18) -> 0
C20: =SUM(D20:R20) -> 0
C22: =SUM(D22:R22) -> 0
C24: =SUM(D24:R24) -> 0
C26: =SUM(D26:R26) -> 0
C28: =SUM(D28:R28) -> 0
C30: =SUM(D30:R30) -> 0
E31: Fuente: Cuadro 5.

Sheet 6
A1: CUADRO 6
A2: COSTA RICA: NUEVOS ELECTORES1/ EMPADRONADOS DURANTE EL AÑO
A3: POR MES, SEGÚN PROVINCIA Y SEXO, AL 31 DE DICIEMBRE DE 2012
A5: Provincia y sexo | B5: Total | C5: Enero | D5: Febrero | E5: Marzo | F5: Abril | G5: Mayo | H5: Junio | I5: Julio | J5: Agosto | K5: Setiembre | L5: Octubre | M5: Noviembre | N5: Diciembre
A7: Costa Rica | B7: =B11+B15+B19+B23+B27+B31+B35+B39+B43 -> 78232 | C7: ='[1]D (3-14)'!C11-'[1]D (3-14)'!B11 -> 8294 | D7: ='[1]D (3-14)'!D11-'[1]D (3-14)'!C11 -> 5377 | E7: ='[1]D (3-14)'!E11-'[1]D (3-14)'!D11 -> 6283 | F7: ='[1]D (3-14)'!F11-'[1]D (3-14)'!E11 -> 5370 | G7: ='[1]D (3-14)'!G11-'[1]D (3-14)'!F11 -> 6734 | H7: ='[1]D (3-14)'!H11-'[1]D (3-14)'!G11 -> 6082 | I7: ='[1]D (3-14)'!I11-'[1]D (3-14)'!H11 -> 6882 | J7: ='[1]D (3-14)'!J11-'[1]D (3-14)'!I11 -> 6835 | K7: ='[1]D (3-14)'!K11-'[1]D (3-14)'!J11 -> 6668 | L7: ='[1]D (3-14)'!L11-'[1]D (3-14)'!K11 -> 7429 | M7: ='[1]D (3-14)'!M11-'[1]D (3-14)'!L11 -> 7583 | N7: ='[1]D (3-14)'!N11-'[1]D (3-14)'!M11 -> 4695
A8: Hombres | B8: =B12+B16+B20+B24+B28+B32+B36+B40+B44 -> 39787 | C8: ='[1]D (3-14)'!C12-'[1]D (3-14)'!B12 -> 4242 | D8: ='[1]D (3-14)'!D12-'[1]D (3-14)'!C12 -> 2863 | E8: ='[1]D (3-14)'!E12-'[1]D (3-14)'!D12 -> 3169 | F8: ='[1]D (3-14)'!F12-'[1]D (3-14)'!E12 -> 2673 | G8: ='[1]D (3-14)'!G12-'[1]D (3-14)'!F12 -> 3411 | H8: ='[1]D (3-14)'!H12-'[1]D (3-14)'!G12 -> 3077 | I8: ='[1]D (3-14)'!I12-'[1]D (3-14)'!H12 -> 3487 | J8: ='[1]D (3-14)'!J12-'[1]D (3-14)'!I12 -> 3422 | K8: ='[1]D (3-14)'!K12-'[1]D (3-14)'!J12 -> 3384 | L8: ='[1]D (3-14)'!L12-'[1]D (3-14)'!K12 -> 3747 | M8: ='[1]D (3-14)'!M12-'[1]D (3-14)'!L12 -> 3874 | N8: ='[1]D (3-14)'!N12-'[1]D (3-14)'!M12 -> 2438
A9: Mujeres | B9: =B13+B17+B21+B25+B29+B33+B37+B41+B45 -> 38445 | C9: ='[1]D (3-14)'!C13-'[1]D (3-14)'!B13 -> 4052 | D9: ='[1]D (3-14)'!D13-'[1]D (3-14)'!C13 -> 2514 | E9: ='[1]D (3-14)'!E13-'[1]D (3-14)'!D13 -> 3114 | F9: ='[1]D (3-14)'!F13-'[1]D (3-14)'!E13 -> 2697 | G9: ='[1]D (3-14)'!G13-'[1]D (3-14)'!F13 -> 3323 | H9: ='[1]D (3-14)'!H13-'[1]D (3-14)'!G13 -> 3005 | I9: ='[1]D (3-14)'!I13-'[1]D (3-14)'!H13 -> 3395 | J9: ='[1]D (3-14)'!J13-'[1]D (3-14)'!I13 -> 3413 | K9: ='[1]D (3-14)'!K13-'[1]D (3-14)'!J13 -> 3284 | L9: ='[1]D (3-14)'!L13-'[1]D (3-14)'!K13 -> 3682 | M9: ='[1]D (3-14)'!M13-'[1]D (3-14)'!L13 -> 3709 | N9: ='[1]D (3-14)'!N13-'[1]D (3-14)'!M13 -> 2257
A11: San José | B11: =SUM(C11:N11) -> 32573 | C11: ='[1]D (3-14)'!C15-'[1]D (3-14)'!B15 -> 3356 | D11: ='[1]D (3-14)'!D15-'[1]D (3-14)'!C15 -> 2267 | E11: ='[1]D (3-14)'!E15-'[1]D (3-14)'!D15 -> 2656 | F11: ='[1]D (3-14)'!F15-'[1]D (3-14)'!E15 -> 2310 | G11: ='[1]D (3-14)'!G15-'[1]D (3-14)'!F15 -> 2828 | H11: ='[1]D (3-14)'!H15-'[1]D (3-14)'!G15 -> 2538 | I11: ='[1]D (3-14)'!I15-'[1]D (3-14)'!H15 -> 2889 | J11: ='[1]D (3-14)'!J15-'[1]D (3-14)'!I15 -> 2889 | K11: ='[1]D (3-14)'!K15-'[1]D (3-14)'!J15 -> 2767 | L11: ='[1]D (3-14)'!L15-'[1]D (3-14)'!K15 -> 3027 | M11: ='[1]D (3-14)'!M15-'[1]D (3-14)'!L15 -> 3073 | N11: ='[1]D (3-14)'!N15-'[1]D (3-14)'!M15 -> 1973
A12: Hombres | B12: =SUM(C12:N12) -> 16460 | C12: ='[1]D (3-14)'!C16-'[1]D (3-14)'!B16 -> 1702 | D12: ='[1]D (3-14)'!D16-'[1]D (3-14)'!C16 -> 1187 | E12: ='[1]D (3-14)'!E16-'[1]D (3-14)'!D16 -> 1335 | F12: ='[1]D (3-14)'!F16-'[1]D (3-14)'!E16 -> 1151 | G12: ='[1]D (3-14)'!G16-'[1]D (3-14)'!F16 -> 1374 | H12: ='[1]D (3-14)'!H16-'[1]D (3-14)'!G16 -> 1284 | I12: ='[1]D (3-14)'!I16-'[1]D (3-14)'!H16 -> 1458 | J12: ='[1]D (3-14)'!J16-'[1]D (3-14)'!I16 -> 1418 | K12: ='[1]D (3-14)'!K16-'[1]D (3-14)'!J16 -> 1394 | L12: ='[1]D (3-14)'!L16-'[1]D (3-14)'!K16 -> 1526 | M12: ='[1]D (3-14)'!M16-'[1]D (3-14)'!L16 -> 1580 | N12: ='[1]D (3-14)'!N16-'[1]D (3-14)'!M16 -> 1051
A13: Mujeres | B13: 16113 | C13: ='[1]D (3-14)'!C17-'[1]D (3-14)'!B17 -> 1654 | D13: ='[1]D (3-14)'!D17-'[1]D (3-14)'!C17 -> 1080 | E13: ='[1]D (3-14)'!E17-'[1]D (3-14)'!D17 -> 1321 | F13: ='[1]D (3-14)'!F17-'[1]D (3-14)'!E17 -> 1159 | G13: ='[1]D (3-14)'!G17-'[1]D (3-14)'!F17 -> 1454 | H13: ='[1]D (3-14)'!H17-'[1]D (3-14)'!G17 -> 1254 | I13: ='[1]D (3-14)'!I17-'[1]D (3-14)'!H17 -> 1431 | J13: ='[1]D (3-14)'!J17-'[1]D (3-14)'!I17 -> 1471 | K13: ='[1]D (3-14)'!K17-'[1]D (3-14)'!J17 -> 1373 | L13: ='[1]D (3-14)'!L17-'[1]D (3-14)'!K17 -> 1501 | M13: ='[1]D (3-14)'!M17-'[1]D (3-14)'!L17 -> 1493 | N13: ='[1]D (3-14)'!N17-'[1]D (3-14)'!M17 -> 922
A15: Alajuela | B15: 12661 | C15: ='[1]D (3-14)'!C19-'[1]D (3-14)'!B19 -> 1419 | D15: ='[1]D (3-14)'!D19-'[1]D (3-14)'!C19 -> 891 | E15: ='[1]D (3-14)'!E19-'[1]D (3-14)'!D19 -> 994 | F15: ='[1]D (3-14)'!F19-'[1]D (3-14)'!E19 -> 859 | G15: ='[1]D (3-14)'!G19-'[1]D (3-14)'!F19 -> 1044 | H15: ='[1]D (3-14)'!H19-'[1]D (3-14)'!G19 -> 978 | I15: ='[1]D (3-14)'!I19-'[1]D (3-14)'!H19 -> 1085 | J15: ='[1]D (3-14)'!J19-'[1]D (3-14)'!I19 -> 1123 | K15: ='[1]D (3-14)'!K19-'[1]D (3-14)'!J19 -> 1035 | L15: ='[1]D (3-14)'!L19-'[1]D (3-14)'!K19 -> 1230 | M15: ='[1]D (3-14)'!M19-'[1]D (3-14)'!L19 -> 1240 | N15: ='[1]D (3-14)'!N19-'[1]D (3-14)'!M19 -> 763
A16: Hombres | B16: 6465 | C16: ='[1]D (3-14)'!C20-'[1]D (3-14)'!B20 -> 755 | D16: ='[1]D (3-14)'!D20-'[1]D (3-14)'!C20 -> 481 | E16: ='[1]D (3-14)'!E20-'[1]D (3-14)'!D20 -> 514 | F16: ='[1]D (3-14)'!F20-'[1]D (3-14)'!E20 -> 417 | G16: ='[1]D (3-14)'!G20-'[1]D (3-14)'!F20 -> 536 | H16: ='[1]D (3-14)'!H20-'[1]D (3-14)'!G20 -> 494 | I16: ='[1]D (3-14)'!I20-'[1]D (3-14)'!H20 -> 540 | J16: ='[1]D (3-14)'!J20-'[1]D (3-14)'!I20 -> 573 | K16: ='[1]D (3-14)'!K20-'[1]D (3-14)'!J20 -> 535 | L16: ='[1]D (3-14)'!L20-'[1]D (3-14)'!K20 -> 613 | M16: ='[1]D (3-14)'!M20-'[1]D (3-14)'!L20 -> 644 | N16: ='[1]D (3-14)'!N20-'[1]D (3-14)'!M20 -> 363
A17: Mujeres | B17: 6196 | C17: ='[1]D (3-14)'!C21-'[1]D (3-14)'!B21 -> 664 | D17: ='[1]D (3-14)'!D21-'[1]D (3-14)'!C21 -> 410 | E17: ='[1]D (3-14)'!E21-'[1]D (3-14)'!D21 -> 480 | F17: ='[1]D (3-14)'!F21-'[1]D (3-14)'!E21 -> 442 | G17: ='[1]D (3-14)'!G21-'[1]D (3-14)'!F21 -> 508 | H17: ='[1]D (3-14)'!H21-'[1]D (3-14)'!G21 -> 484 | I17: ='[1]D (3-14)'!I21-'[1]D (3-14)'!H21 -> 545 | J17: ='[1]D (3-14)'!J21-'[1]D (3-14)'!I21 -> 550 | K17: ='[1]D (3-14)'!K21-'[1]D (3-14)'!J21 -> 500 | L17: ='[1]D (3-14)'!L21-'[1]D (3-14)'!K21 -> 617 | M17: ='[1]D (3-14)'!M21-'[1]D (3-14)'!L21 -> 596 | N17: ='[1]D (3-14)'!N21-'[1]D (3-14)'!M21 -> 400
A19: Cartago | B19: 7769 | C19: ='[1]D (3-14)'!C23-'[1]D (3-14)'!B23 -> 796 | D19: ='[1]D (3-14)'!D23-'[1]D (3-14)'!C23 -> 561 | E19: ='[1]D (3-14)'!E23-'[1]D (3-14)'!D23 -> 658 | F19: ='[1]D (3-14)'!F23-'[1]D (3-14)'!E23 -> 516 | G19: ='[1]D (3-14)'!G23-'[1]D (3-14)'!F23 -> 696 | H19: ='[1]D (3-14)'!H23-'[1]D (3-14)'!G23 -> 626 | I19: ='[1]D (3-14)'!I23-'[1]D (3-14)'!H23 -> 694 | J19: ='[1]D (3-14)'!J23-'[1]D (3-14)'!I23 -> 591 | K19: ='[1]D (3-14)'!K23-'[1]D (3-14)'!J23 -> 671 | L19: ='[1]D (3-14)'!L23-'[1]D (3-14)'!K23 -> 755 | M19: ='[1]D (3-14)'!M23-'[1]D (3-14)'!L23 -> 760 | N19: ='[1]D (3-14)'!N23-'[1]D (3-14)'!M23 -> 445
A20: Hombres | B20: 4019 | C20: ='[1]D (3-14)'!C24-'[1]D (3-14)'!B24 -> 410 | D20: ='[1]D (3-14)'!D24-'[1]D (3-14)'!C24 -> 299 | E20: ='[1]D (3-14)'!E24-'[1]D (3-14)'!D24 -> 339 | F20: ='[1]D (3-14)'!F24-'[1]D (3-14)'!E24 -> 282 | G20: ='[1]D (3-14)'!G24-'[1]D (3-14)'!F24 -> 373 | H20: ='[1]D (3-14)'!H24-'[1]D (3-14)'!G24 -> 311 | I20: ='[1]D (3-14)'!I24-'[1]D (3-14)'!H24 -> 353 | J20: ='[1]D (3-14)'!J24-'[1]D (3-14)'!I24 -> 310 | K20: ='[1]D (3-14)'!K24-'[1]D (3-14)'!J24 -> 338 | L20: ='[1]D (3-14)'!L24-'[1]D (3-14)'!K24 -> 384 | M20: ='[1]D (3-14)'!M24-'[1]D (3-14)'!L24 -> 379 | N20: ='[1]D (3-14)'!N24-'[1]D (3-14)'!M24 -> 241
A21: Mujeres | B21: 3750 | C21: ='[1]D (3-14)'!C25-'[1]D (3-14)'!B25 -> 386 | D21: ='[1]D (3-14)'!D25-'[1]D (3-14)'!C25 -> 262 | E21: ='[1]D (3-14)'!E25-'[1]D (3-14)'!D25 -> 319 | F21: ='[1]D (3-14)'!F25-'[1]D (3-14)'!E25 -> 234 | G21: ='[1]D (3-14)'!G25-'[1]D (3-14)'!F25 -> 323 | H21: ='[1]D (3-14)'!H25-'[1]D (3-14)'!G25 -> 315 | I21: ='[1]D (3-14)'!I25-'[1]D (3-14)'!H25 -> 341 | J21: ='[1]D (3-14)'!J25-'[1]D (3-14)'!I25 -> 281 | K21: ='[1]D (3-14)'!K25-'[1]D (3-14)'!J25 -> 333 | L21: ='[1]D (3-14)'!L25-'[1]D (3-14)'!K25 -> 371 | M21: ='[1]D (3-14)'!M25-'[1]D (3-14)'!L25 -> 381 | N21: ='[1]D (3-14)'!N25-'[1]D (3-14)'!M25 -> 204
A23: Heredia | B23: =SUM(C23:N23) -> 3813 | C23: ='[1]D (3-14)'!C27-'[1]D (3-14)'!B27 -> 419 | D23: ='[1]D (3-14)'!D27-'[1]D (3-14)'!C27 -> 237 | E23: ='[1]D (3-14)'!E27-'[1]D (3-14)'!D27 -> 340 | F23: ='[1]D (3-14)'!F27-'[1]D (3-14)'!E27 -> 301 | G23: ='[1]D (3-14)'!G27-'[1]D (3-14)'!F27 -> 344 | H23: ='[1]D (3-14)'!H27-'[1]D (3-14)'!G27 -> 287 | I23: ='[1]D (3-14)'!I27-'[1]D (3-14)'!H27 -> 316 | J23: ='[1]D (3-14)'!J27-'[1]D (3-14)'!I27 -> 325 | K23: ='[1]D (3-14)'!K27-'[1]D (3-14)'!J27 -> 350 | L23: ='[1]D (3-14)'!L27-'[1]D (3-14)'!K27 -> 345 | M23: ='[1]D (3-14)'!M27-'[1]D (3-14)'!L27 -> 341 | N23: ='[1]D (3-14)'!N27-'[1]D (3-14)'!M27 -> 208
A24: Hombres | B24: 1954 | C24: ='[1]D (3-14)'!C28-'[1]D (3-14)'!B28 -> 219 | D24: ='[1]D (3-14)'!D28-'[1]D (3-14)'!C28 -> 135 | E24: ='[1]D (3-14)'!E28-'[1]D (3-14)'!D28 -> 168 | F24: ='[1]D (3-14)'!F28-'[1]D (3-14)'!E28 -> 147 | G24: ='[1]D (3-14)'!G28-'[1]D (3-14)'!F28 -> 176 | H24: ='[1]D (3-14)'!H28-'[1]D (3-14)'!G28 -> 145 | I24: ='[1]D (3-14)'!I28-'[1]D (3-14)'!H28 -> 165 | J24: ='[1]D (3-14)'!J28-'[1]D (3-14)'!I28 -> 162 | K24: ='[1]D (3-14)'!K28-'[1]D (3-14)'!J28 -> 173 | L24: ='[1]D (3-14)'!L28-'[1]D (3-14)'!K28 -> 177 | M24: ='[1]D (3-14)'!M28-'[1]D (3-14)'!L28 -> 175 | N24: ='[1]D (3-14)'!N28-'[1]D (3-14)'!M28 -> 112
A25: Mujeres | B25: 1859 | C25: ='[1]D (3-14)'!C29-'[1]D (3-14)'!B29 -> 200 | D25: ='[1]D (3-14)'!D29-'[1]D (3-14)'!C29 -> 102 | E25: ='[1]D (3-14)'!E29-'[1]D (3-14)'!D29 -> 172 | F25: ='[1]D (3-14)'!F29-'[1]D (3-14)'!E29 -> 154 | G25: ='[1]D (3-14)'!G29-'[1]D (3-14)'!F29 -> 168 | H25: ='[1]D (3-14)'!H29-'[1]D (3-14)'!G29 -> 142 | I25: ='[1]D (3-14)'!I29-'[1]D (3-14)'!H29 -> 151 | J25: ='[1]D (3-14)'!J29-'[1]D (3-14)'!I29 -> 163 | K25: ='[1]D (3-14)'!K29-'[1]D (3-14)'!J29 -> 177 | L25: ='[1]D (3-14)'!L29-'[1]D (3-14)'!K29 -> 168 | M25: ='[1]D (3-14)'!M29-'[1]D (3-14)'!L29 -> 166 | N25: ='[1]D (3-14)'!N29-'[1]D (3-14)'!M29 -> 96
A27: Guanacaste | B27: 5499 | C27: ='[1]D (3-14)'!C31-'[1]D (3-14)'!B31 -> 583 | D27: ='[1]D (3-14)'!D31-'[1]D (3-14)'!C31 -> 378 | E27: ='[1]D (3-14)'!E31-'[1]D (3-14)'!D31 -> 389 | F27: ='[1]D (3-14)'!F31-'[1]D (3-14)'!E31 -> 332 | G27: ='[1]D (3-14)'!G31-'[1]D (3-14)'!F31 -> 470 | H27: ='[1]D (3-14)'!H31-'[1]D (3-14)'!G31 -> 412 | I27: ='[1]D (3-14)'!I31-'[1]D (3-14)'!H31 -> 506 | J27: ='[1]D (3-14)'!J31-'[1]D (3-14)'!I31 -> 487 | K27: ='[1]D (3-14)'!K31-'[1]D (3-14)'!J31 -> 474 | L27: ='[1]D (3-14)'!L31-'[1]D (3-14)'!K31 -> 566 | M27: ='[1]D (3-14)'!M31-'[1]D (3-14)'!L31 -> 575 | N27: ='[1]D (3-14)'!N31-'[1]D (3-14)'!M31 -> 327
A28: Hombres | B28: 2820 | C28: ='[1]D (3-14)'!C32-'[1]D (3-14)'!B32 -> 301 | D28: ='[1]D (3-14)'!D32-'[1]D (3-14)'!C32 -> 203 | E28: ='[1]D (3-14)'!E32-'[1]D (3-14)'!D32 -> 191 | F28: ='[1]D (3-14)'!F32-'[1]D (3-14)'!E32 -> 162 | G28: ='[1]D (3-14)'!G32-'[1]D (3-14)'!F32 -> 243 | H28: ='[1]D (3-14)'!H32-'[1]D (3-14)'!G32 -> 197 | I28: ='[1]D (3-14)'!I32-'[1]D (3-14)'!H32 -> 262 | J28: ='[1]D (3-14)'!J32-'[1]D (3-14)'!I32 -> 253 | K28: ='[1]D (3-14)'!K32-'[1]D (3-14)'!J32 -> 247 | L28: ='[1]D (3-14)'!L32-'[1]D (3-14)'!K32 -> 308 | M28: ='[1]D (3-14)'!M32-'[1]D (3-14)'!L32 -> 297 | N28: ='[1]D (3-14)'!N32-'[1]D (3-14)'!M32 -> 156
A29: Mujeres | B29: 2679 | C29: ='[1]D (3-14)'!C33-'[1]D (3-14)'!B33 -> 282 | D29: ='[1]D (3-14)'!D33-'[1]D (3-14)'!C33 -> 175 | E29: ='[1]D (3-14)'!E33-'[1]D (3-14)'!D33 -> 198 | F29: ='[1]D (3-14)'!F33-'[1]D (3-14)'!E33 -> 170 | G29: ='[1]D (3-14)'!G33-'[1]D (3-14)'!F33 -> 227 | H29: ='[1]D (3-14)'!H33-'[1]D (3-14)'!G33 -> 215 | I29: ='[1]D (3-14)'!I33-'[1]D (3-14)'!H33 -> 244 | J29: ='[1]D (3-14)'!J33-'[1]D (3-14)'!I33 -> 234 | K29: ='[1]D (3-14)'!K33-'[1]D (3-14)'!J33 -> 227 | L29: ='[1]D (3-14)'!L33-'[1]D (3-14)'!K33 -> 258 | M29: ='[1]D (3-14)'!M33-'[1]D (3-14)'!L33 -> 278 | N29: ='[1]D (3-14)'!N33-'[1]D (3-14)'!M33 -> 171
A31: Puntarenas | B31: 7030 | C31: ='[1]D (3-14)'!C35-'[1]D (3-14)'!B35 -> 772 | D31: ='[1]D (3-14)'!D35-'[1]D (3-14)'!C35 -> 491 | E31: ='[1]D (3-14)'!E35-'[1]D (3-14)'!D35 -> 600 | F31: ='[1]D (3-14)'!F35-'[1]D (3-14)'!E35 -> 494 | G31: ='[1]D (3-14)'!G35-'[1]D (3-14)'!F35 -> 632 | H31: ='[1]D (3-14)'!H35-'[1]D (3-14)'!G35 -> 580 | I31: ='[1]D (3-14)'!I35-'[1]D (3-14)'!H35 -> 615 | J31: ='[1]D (3-14)'!J35-'[1]D (3-14)'!I35 -> 606 | K31: ='[1]D (3-14)'!K35-'[1]D (3-14)'!J35 -> 600 | L31: ='[1]D (3-14)'!L35-'[1]D (3-14)'!K35 -> 599 | M31: ='[1]D (3-14)'!M35-'[1]D (3-14)'!L35 -> 630 | N31: ='[1]D (3-14)'!N35-'[1]D (3-14)'!M35 -> 411
A32: Hombres | B32: 3559 | C32: ='[1]D (3-14)'!C36-'[1]D (3-14)'!B36 -> 384 | D32: ='[1]D (3-14)'!D36-'[1]D (3-14)'!C36 -> 276 | E32: ='[1]D (3-14)'!E36-'[1]D (3-14)'!D36 -> 295 | F32: ='[1]D (3-14)'!F36-'[1]D (3-14)'!E36 -> 226 | G32: ='[1]D (3-14)'!G36-'[1]D (3-14)'!F36 -> 328 | H32: ='[1]D (3-14)'!H36-'[1]D (3-14)'!G36 -> 304 | I32: ='[1]D (3-14)'!I36-'[1]D (3-14)'!H36 -> 313 | J32: ='[1]D (3-14)'!J36-'[1]D (3-14)'!I36 -> 303 | K32: ='[1]D (3-14)'!K36-'[1]D (3-14)'!J36 -> 309 | L32: ='[1]D (3-14)'!L36-'[1]D (3-14)'!K36 -> 297 | M32: ='[1]D (3-14)'!M36-'[1]D (3-14)'!L36 -> 312 | N32: ='[1]D (3-14)'!N36-'[1]D (3-14)'!M36 -> 212
A33: Mujeres | B33: 3471 | C33: ='[1]D (3-14)'!C37-'[1]D (3-14)'!B37 -> 388 | D33: ='[1]D (3-14)'!D37-'[1]D (3-14)'!C37 -> 215 | E33: ='[1]D (3-14)'!E37-'[1]D (3-14)'!D37 -> 305 | F33: ='[1]D (3-14)'!F37-'[1]D (3-14)'!E37 -> 268 | G33: ='[1]D (3-14)'!G37-'[1]D (3-14)'!F37 -> 304 | H33: ='[1]D (3-14)'!H37-'[1]D (3-14)'!G37 -> 276 | I33: ='[1]D (3-14)'!I37-'[1]D (3-14)'!H37 -> 302 | J33: ='[1]D (3-14)'!J37-'[1]D (3-14)'!I37 -> 303 | K33: ='[1]D (3-14)'!K37-'[1]D (3-14)'!J37 -> 291 | L33: ='[1]D (3-14)'!L37-'[1]D (3-14)'!K37 -> 302 | M33: ='[1]D (3-14)'!M37-'[1]D (3-14)'!L37 -> 318 | N33: ='[1]D (3-14)'!N37-'[1]D (3-14)'!M37 -> 199
A35: Limón | B35: 7919 | C35: ='[1]D (3-14)'!C39-'[1]D (3-14)'!B39 -> 840 | D35: ='[1]D (3-14)'!D39-'[1]D (3-14)'!C39 -> 496 | E35: ='[1]D (3-14)'!E39-'[1]D (3-14)'!D39 -> 589 | F35: ='[1]D (3-14)'!F39-'[1]D (3-14)'!E39 -> 518 | G35: ='[1]D (3-14)'!G39-'[1]D (3-14)'!F39 -> 641 | H35: ='[1]D (3-14)'!H39-'[1]D (3-14)'!G39 -> 575 | I35: ='[1]D (3-14)'!I39-'[1]D (3-14)'!H39 -> 714 | J35: ='[1]D (3-14)'!J39-'[1]D (3-14)'!I39 -> 725 | K35: ='[1]D (3-14)'!K39-'[1]D (3-14)'!J39 -> 691 | L35: ='[1]D (3-14)'!L39-'[1]D (3-14)'!K39 -> 808 | M35: ='[1]D (3-14)'!M39-'[1]D (3-14)'!L39 -> 842 | N35: ='[1]D (3-14)'!N39-'[1]D (3-14)'!M39 -> 480
A36: Hombres | B36: 4001 | C36: ='[1]D (3-14)'!C40-'[1]D (3-14)'!B40 -> 410 | D36: ='[1]D (3-14)'!D40-'[1]D (3-14)'!C40 -> 257 | E36: ='[1]D (3-14)'!E40-'[1]D (3-14)'!D40 -> 295 | F36: ='[1]D (3-14)'!F40-'[1]D (3-14)'!E40 -> 269 | G36: ='[1]D (3-14)'!G40-'[1]D (3-14)'!F40 -> 336 | H36: ='[1]D (3-14)'!H40-'[1]D (3-14)'!G40 -> 298 | I36: ='[1]D (3-14)'!I40-'[1]D (3-14)'!H40 -> 360 | J36: ='[1]D (3-14)'!J40-'[1]D (3-14)'!I40 -> 360 | K36: ='[1]D (3-14)'!K40-'[1]D (3-14)'!J40 -> 361 | L36: ='[1]D (3-14)'!L40-'[1]D (3-14)'!K40 -> 386 | M36: ='[1]D (3-14)'!M40-'[1]D (3-14)'!L40 -> 421 | N36: ='[1]D (3-14)'!N40-'[1]D (3-14)'!M40 -> 248
A37: Mujeres | B37: 3918 | C37: ='[1]D (3-14)'!C41-'[1]D (3-14)'!B41 -> 430 | D37: ='[1]D (3-14)'!D41-'[1]D (3-14)'!C41 -> 239 | E37: ='[1]D (3-14)'!E41-'[1]D (3-14)'!D41 -> 294 | F37: ='[1]D (3-14)'!F41-'[1]D (3-14)'!E41 -> 249 | G37: ='[1]D (3-14)'!G41-'[1]D (3-14)'!F41 -> 305 | H37: ='[1]D (3-14)'!H41-'[1]D (3-14)'!G41 -> 277 | I37: ='[1]D (3-14)'!I41-'[1]D (3-14)'!H41 -> 354 | J37: ='[1]D (3-14)'!J41-'[1]D (3-14)'!I41 -> 365 | K37: ='[1]D (3-14)'!K41-'[1]D (3-14)'!J41 -> 330 | L37: ='[1]D (3-14)'!L41-'[1]D (3-14)'!K41 -> 422 | M37: ='[1]D (3-14)'!M41-'[1]D (3-14)'!L41 -> 421 | N37: ='[1]D (3-14)'!N41-'[1]D (3-14)'!M41 -> 232
A39: Partido especial | B39: 607 | C39: ='[1]D (3-14)'!C43-'[1]D (3-14)'!B43 -> 87 | D39: ='[1]D (3-14)'!D43-'[1]D (3-14)'!C43 -> 41 | E39: ='[1]D (3-14)'!E43-'[1]D (3-14)'!D43 -> 41 | F39: ='[1]D (3-14)'!F43-'[1]D (3-14)'!E43 -> 29 | G39: ='[1]D (3-14)'!G43-'[1]D (3-14)'!F43 -> 49 | H39: ='[1]D (3-14)'!H43-'[1]D (3-14)'!G43 -> 67 | I39: ='[1]D (3-14)'!I43-'[1]D (3-14)'!H43 -> 55 | J39: ='[1]D (3-14)'!J43-'[1]D (3-14)'!I43 -> 58 | K39: ='[1]D (3-14)'!K43-'[1]D (3-14)'!J43 -> 43 | L39: ='[1]D (3-14)'!L43-'[1]D (3-14)'!K43 -> 45 | M39: ='[1]D (3-14)'!M43-'[1]D (3-14)'!L43 -> 62 | N39: ='[1]D (3-14)'!N43-'[1]D (3-14)'!M43 -> 30
A40: Hombres | B40: 321 | C40: ='[1]D (3-14)'!C44-'[1]D (3-14)'!B44 -> 48 | D40: ='[1]D (3-14)'!D44-'[1]D (3-14)'!C44 -> 20 | E40: ='[1]D (3-14)'!E44-'[1]D (3-14)'!D44 -> 21 | F40: ='[1]D (3-14)'!F44-'[1]D (3-14)'!E44 -> 14 | G40: ='[1]D (3-14)'!G44-'[1]D (3-14)'!F44 -> 29 | H40: ='[1]D (3-14)'!H44-'[1]D (3-14)'!G44 -> 34 | I40: ='[1]D (3-14)'!I44-'[1]D (3-14)'!H44 -> 30 | J40: ='[1]D (3-14)'!J44-'[1]D (3-14)'!I44 -> 28 | K40: ='[1]D (3-14)'!K44-'[1]D (3-14)'!J44 -> 17 | L40: ='[1]D (3-14)'!L44-'[1]D (3-14)'!K44 -> 26 | M40: ='[1]D (3-14)'!M44-'[1]D (3-14)'!L44 -> 34 | N40: ='[1]D (3-14)'!N44-'[1]D (3-14)'!M44 -> 20
A41: Mujeres | B41: =SUM(C41:N41) -> 286 | C41: ='[1]D (3-14)'!C45-'[1]D (3-14)'!B45 -> 39 | D41: ='[1]D (3-14)'!D45-'[1]D (3-14)'!C45 -> 21 | E41: ='[1]D (3-14)'!E45-'[1]D (3-14)'!D45 -> 20 | F41: ='[1]D (3-14)'!F45-'[1]D (3-14)'!E45 -> 15 | G41: ='[1]D (3-14)'!G45-'[1]D (3-14)'!F45 -> 20 | H41: ='[1]D (3-14)'!H45-'[1]D (3-14)'!G45 -> 33 | I41: ='[1]D (3-14)'!I45-'[1]D (3-14)'!H45 -> 25 | J41: ='[1]D (3-14)'!J45-'[1]D (3-14)'!I45 -> 30 | K41: ='[1]D (3-14)'!K45-'[1]D (3-14)'!J45 -> 26 | L41: ='[1]D (3-14)'!L45-'[1]D (3-14)'!K45 -> 19 | M41: ='[1]D (3-14)'!M45-'[1]D (3-14)'!L45 -> 28 | N41: ='[1]D (3-14)'!N45-'[1]D (3-14)'!M45 -> 10
A43: Naturalizados | B43: 361 | C43: ='[1]D (3-14)'!C47-'[1]D (3-14)'!B47 -> 22 | D43: ='[1]D (3-14)'!D47-'[1]D (3-14)'!C47 -> 15 | E43: ='[1]D (3-14)'!E47-'[1]D (3-14)'!D47 -> 16 | F43: ='[1]D (3-14)'!F47-'[1]D (3-14)'!E47 -> 11 | G43: ='[1]D (3-14)'!G47-'[1]D (3-14)'!F47 -> 30 | H43: ='[1]D (3-14)'!H47-'[1]D (3-14)'!G47 -> 19 | I43: ='[1]D (3-14)'!I47-'[1]D (3-14)'!H47 -> 8 | J43: ='[1]D (3-14)'!J47-'[1]D (3-14)'!I47 -> 31 | K43: ='[1]D (3-14)'!K47-'[1]D (3-14)'!J47 -> 37 | L43: ='[1]D (3-14)'!L47-'[1]D (3-14)'!K47 -> 54 | M43: ='[1]D (3-14)'!M47-'[1]D (3-14)'!L47 -> 60 | N43: ='[1]D (3-14)'!N47-'[1]D (3-14)'!M47 -> 58
A44: Hombres | B44: 188 | C44: ='[1]D (3-14)'!C48-'[1]D (3-14)'!B48 -> 13 | D44: ='[1]D (3-14)'!D48-'[1]D (3-14)'!C48 -> 5 | E44: ='[1]D (3-14)'!E48-'[1]D (3-14)'!D48 -> 11 | F44: ='[1]D (3-14)'!F48-'[1]D (3-14)'!E48 -> 5 | G44: ='[1]D (3-14)'!G48-'[1]D (3-14)'!F48 -> 16 | H44: ='[1]D (3-14)'!H48-'[1]D (3-14)'!G48 -> 10 | I44: ='[1]D (3-14)'!I48-'[1]D (3-14)'!H48 -> 6 | J44: ='[1]D (3-14)'!J48-'[1]D (3-14)'!I48 -> 15 | K44: ='[1]D (3-14)'!K48-'[1]D (3-14)'!J48 -> 10 | L44: ='[1]D (3-14)'!L48-'[1]D (3-14)'!K48 -> 30 | M44: ='[1]D (3-14)'!M48-'[1]D (3-14)'!L48 -> 32 | N44: ='[1]D (3-14)'!N48-'[1]D (3-14)'!M48 -> 35
A45: Mujeres | B45: =SUM(C45:N45) -> 173 | C45: ='[1]D (3-14)'!C49-'[1]D (3-14)'!B49 -> 9 | D45: ='[1]D (3-14)'!D49-'[1]D (3-14)'!C49 -> 10 | E45: ='[1]D (3-14)'!E49-'[1]D (3-14)'!D49 -> 5 | F45: ='[1]D (3-14)'!F49-'[1]D (3-14)'!E49 -> 6 | G45: ='[1]D (3-14)'!G49-'[1]D (3-14)'!F49 -> 14 | H45: ='[1]D (3-14)'!H49-'[1]D (3-14)'!G49 -> 9 | I45: ='[1]D (3-14)'!I49-'[1]D (3-14)'!H49 -> 2 | J45: ='[1]D (3-14)'!J49-'[1]D (3-14)'!I49 -> 16 | K45: ='[1]D (3-14)'!K49-'[1]D (3-14)'!J49 -> 27 | L45: ='[1]D (3-14)'!L49-'[1]D (3-14)'!K49 -> 24 | M45: ='[1]D (3-14)'!M49-'[1]D (3-14)'!L49 -> 28 | N45: ='[1]D (3-14)'!N49-'[1]D (3-14)'!M49 -> 23
A49: Fuente: Sección Padrón Electoral del Tribunal Supremo de Elecciones.

Sheet 7
A1: CUADRO 7
A2: COSTA RICA: MOVIMIENTOS AL PADRÓN NACIONAL ELECTORAL
A3: POR TIPO DE MOVIMIENTO, SEGÚN MES
A4: AL 31 DE DICIEMBRE DE 2012
A6: Mes | B6: Padrón Nacional Electoral anterior | D6: Tipo de movimiento | O6: Padrón Nacional Electoral actual
D7: Inclusiones | I7: Exclusiones
D8: Cédulas Primera vez1/ | F8: Cédulas renovadas | I8: Defunción | K8: Cédulas vencidas2/ | M8: Otras
A10: Enero | B10: 2931888 | D10: 8605 | F10: 7885 | I10: 1201 | K10: 9402 | M10: 17 | O10: 2937758
A11: Febrero | B11: 2937758 | D11: 5718 | F11: 6288 | I11: 1522 | K11: 5755 | M11: 7 | O11: 2942480
A12: Marzo | B12: 2942480 | D12: 6613 | F12: 7302 | I12: 1882 | K12: 7103 | M12: 14 | O12: 2947396
A13: Abril | B13: 2947396 | D13: 5453 | F13: 5182 | I13: 509 | K13: 4984 | M13: 7 | O13: 2952531
A14: Mayo | B14: 2952531 | D14: 7133 | F14: 6414 | I14: 2119 | K14: 4456 | M14: 13 | O14: 2959490
A15: Junio | B15: 2959490 | D15: 6453 | F15: 5132 | I15: 1045 | K15: 3838 | M15: 10 | O15: 2966182
A16: Julio | B16: 2966182 | D16: 7117 | F16: 5816 | I16: 1343 | K16: 5218 | M16: 29 | O16: 2972525
A17: Agosto | B17: 2972525 | D17: 7330 | F17: 5816 | I17: 1143 | K17: 5200 | M17: 10 | O17: 2979318
A18: Setiembre | B18: 2979318 | D18: 7242 | F18: 5001 | I18: 1471 | K18: 5089 | M18: 10 | O18: 2984991
A19: Octubre | B19: 2984991 | D19: 7978 | F19: 5494 | I19: 1668 | K19: 5678 | M19: 10 | O19: 2991107
A20: Noviembre | B20: 2991107 | D20: 8459 | F20: 5670 | I20: 1245 | K20: 5708 | M20: 11 | O20: 2998272
A21: Diciembre | B21: 2998272 | D21: 5730 | F21: 3812 | I21: 956 | K21: 2927 | M21: 9 | O21: 3003922
A24: 1/ Incluye nuevos electores, inclusión condicional de nuevos electores y otras inclusiones.
A25: 2/ No se aplican exclusiones por caducidad durante el año anterior a una elección. (Ley Orgánica del TSE, Art. 94)
A27: Nota: El padrón estuvo cerrado por las elecciones municipales hasta febrero inclusive.
A28: Fuente: Sección Padrón Electoral del Tribunal Supremo de Elecciones.

Sheet 8
A1: CUADRO 8
A2: COSTA RICA: PRODUCTOS Y SERVICIOS BRINDADOS, POR TIPO DE SERVICIO
A3: SEGÚN MES, AL 31 DE DICIEMBRE DE 2012
A5: Mes | B5: Total | C5: Productos y Sevicios
C6: Cédulas de identidad impresas | D6: Tarjetas identidad de menores impresas | E6: Certificaciones y constancias expedidas | F6: Asambleas de partidos políticos fiscalizadas | G6: Atención de consultas en materia electoral 1/ | H6: Movimientos y actualizaciones al Padrón Electoral
A8: Total | B8: =SUM(B10:B21) -> 4632839 | C8: =SUM(C10:C21) -> 632321 | D8: =SUM(D10:D21) -> 158391 | E8: 3094068 | F8: 1780 | G8: 16405 | H8: 729874
A10: Enero | B10: =SUM(C10:H10) -> 423087 | C10: 64918 | D10: 17663 | E10: 262094 | F10: 5 | G10: 729 | H10: 77678
A11: Febrero | B11: 477943 | C11: 51634 | D11: 16198 | E11: 350094 | F11: 15 | G11: 721 | H11: 59281
A12: Marzo | B12: 446326 | C12: 61365 | D12: 11116 | E12: 302912 | F12: 42 | G12: 1670 | H12: 69221
A13: Abril | B13: 285557 | C13: 41291 | D13: 9103 | E13: 184862 | F13: 36 | G13: 3277 | H13: 46988
A14: Mayo | B14: 367414 | C14: 56027 | D14: 11232 | E14: 235465 | F14: 67 | G14: 809 | H14: 63814
A15: Junio | B15: 332437 | C15: 50012 | D15: 10567 | E15: 214253 | F15: 93 | G15: 1856 | H15: 55656
A16: Julio | B16: 370994 | C16: 55759 | D16: 15036 | E16: 236553 | F16: 125 | G16: 762 | H16: 62759
A17: Agosto | B17: 411178 | C17: 54340 | D17: 11429 | E17: 282286 | F17: 244 | G17: 908 | H17: 61971
A18: Setiembre | B18: 351128 | C18: 50346 | D18: 10558 | E18: 231952 | F18: 280 | G18: 1001 | H18: 56991
A19: Octubre | B19: 454938 | C19: 54608 | D19: 16938 | E19: 311866 | F19: 246 | G19: 1466 | H19: 69814
A20: Noviembre | B20: 433456 | C20: 55261 | D20: 14936 | E20: 297429 | F20: 274 | G20: 1608 | H20: 63948
A21: Diciembre | B21: 278381 | C21: 36760 | D21: 13615 | E21: 184302 | F21: 353 | G21: 1598 | H21: 41753
A24: 1/ De Partidos Políticos, Municipalidades, Asamblea Legislativa y otros.
A26: Fuente: Oficinas del Tribunal Supremo de Elecciones.

Sheet 9
A1: CUADRO 9
A2: COSTA RICA: CERTIFICACIONES SOLICITADAS VÍA
A3: INTERNET, POR TIPO DE SOLICITUD, SEGÚN MES
A4: AL 31 DE DICIEMBRE DE 2012
A6: Mes | B6: Total | C6: Tipo de solicitud
C7: Nacimiento | D7: Matrimonio | E7: Defunción | F7: No aparece matrimonio
A9: Total | B9: =SUM(C9:F9) -> 90397 | C9: =SUM(C11:C22) -> 50538 | D9: =SUM(D11:D22) -> 16830 | E9: =SUM(E11:E22) -> 5918 | F9: =SUM(F11:F22) -> 17111
A11: Enero | B11: =SUM(C11:F11) -> 8112 | C11: 4544 | D11: 1543 | E11: 441 | F11: 1584
A12: Febrero | B12: 8475 | C12: 4772 | D12: 1565 | E12: 646 | F12: 1492
A13: Marzo | B13: 6633 | C13: 3351 | D13: 1420 | E13: 464 | F13: 1398
A14: Abril | B14: 5651 | C14: 2848 | D14: 1140 | E14: 439 | F14: 1224
A15: Mayo | B15: 7526 | C15: 3999 | D15: 1574 | E15: 580 | F15: 1373
A16: Junio | B16: 6339 | C16: 3456 | D16: 1197 | E16: 446 | F16: 1240
A17: Julio | B17: 7840 | C17: 4669 | D17: 1437 | E17: 431 | F17: 1303
A18: Agosto | B18: 9069 | C18: 5507 | D18: 1640 | E18: 552 | F18: 1370
A19: Setiembre | B19: 7219 | C19: 3916 | D19: 1365 | E19: 515 | F19: 1423
A20: Octubre | B20: 9101 | C20: 5176 | D20: 1648 | E20: 544 | F20: 1733
A21: Noviembre | B21: 8774 | C21: 5042 | D21: 1444 | E21: 540 | F21: 1748
A22: Diciembre | B22: 5658 | C22: 3258 | D22: 857 | E22: 320 | F22: 1223
A25: Fuente: Departamento Civil del Tribunal Supremo de Elecciones.

Sheet 10
A1: CUADRO 10
A2: COSTA RICA: TARJETAS DE IDENTIDAD DE MENORES IMPRESAS
A3: POR PROVINCIA, SEGÚN MES, AL 31 DE DICIEMBRE DE 2012
A5: Mes | B5: Total | C5: Provincia
C6: San José | D6: Alajuela | E6: Cartago | F6: Heredia | G6: Guanacaste | H6: Puntarenas | I6: Limón
A8: Total | B8: =SUM(C8:I8) -> 158391 | C8: =SUM(C10:C21) -> 54547 | D8: =SUM(D10:D21) -> 30917 | E8: 15347 | F8: 12734 | G8: 11851 | H8: 15579 | I8: 17416
A10: Enero | B10: =SUM(C10:I10) -> 17663 | C10: 6393 | D10: 3202 | E10: 1489 | F10: 1322 | G10: 1530 | H10: 1827 | I10: 1900
A11: Febrero | B11: =SUM(C11:I11) -> 16198 | C11: 4970 | D11: 3167 | E11: 1481 | F11: 1233 | G11: 1587 | H11: 1618 | I11: 2142
A12: Marzo | B12: 11116 | C12: 3574 | D12: 2327 | E12: 958 | F12: 752 | G12: 930 | H12: 1458 | I12: 1117
A13: Abril | B13: 9103 | C13: 3157 | D13: 1850 | E13: 888 | F13: 738 | G13: 650 | H13: 976 | I13: 844
A14: Mayo | B14: 11232 | C14: 3878 | D14: 2075 | E14: 1074 | F14: 1011 | G14: 658 | H14: 1048 | I14: 1488
A15: Junio | B15: 10567 | C15: 3674 | D15: 2053 | E15: 1048 | F15: 893 | G15: 709 | H15: 887 | I15: 1303
A16: Julio | B16: 15036 | C16: 5567 | D16: 2844 | E16: 1499 | F16: 1172 | G16: 1221 | H16: 1327 | I16: 1406
A17: Agosto | B17: 11429 | C17: 4009 | D17: 2363 | E17: 1285 | F17: 820 | G17: 784 | H17: 1004 | I17: 1164
A18: Setiembre | B18: 10558 | C18: 3854 | D18: 1841 | E18: 1055 | F18: 1035 | G18: 604 | H18: 971 | I18: 1198
A19: Octubre | B19: 16938 | C19: 6325 | D19: 3286 | E19: 1839 | F19: 1631 | G19: 709 | H19: 1452 | I19: 1696
A20: Noviembre | B20: 14936 | C20: 5093 | D20: 2937 | E20: 1489 | F20: 1271 | G20: 1155 | H20: 1463 | I20: 1528
A21: Diciembre | B21: 13615 | C21: 4053 | D21: 2972 | E21: 1242 | F21: 856 | G21: 1314 | H21: 1548 | I21: 1630
A24: Fuente: Departamento Civil y Coordinación de Servicios Regionales del Tribunal Supremo de Elecciones.

Sheet 11
A1: CUADRO 11
A2: COSTA RICA: INSCRIPCIONES CIVILES POR MES, SEGÚN CLASE DE INSCRIPCIÓN
A3: AL 31 DE DICIEMBRE DE 2012
A5: Clase de inscripción 1/ | B5: Total | C5: Mes
C6: Enero | D6: Febrero | E6: Marzo | F6: Abril | G6: Mayo | H6: Junio | I6: Julio | J6: Agosto | K6: Setiembre | L6: Octubre | M6: Noviembre | N6: Diciembre
A8: Nacimientos | B8: 76631 | C8: 6253 | D8: 6818 | E8: 7833 | F8: 3867 | G8: 8171 | H8: 6094 | I8: 5976 | J8: 6613 | K8: 5986 | L8: 7600 | M8: 7160 | N8: 4260
A9: Matrimonios: | B9: 25807 | C9: 3130 | D9: 2735 | E9: 2458 | F9: 1688 | G9: 2269 | H9: 2142 | I9: 1956 | J9: 1781 | K9: 1654 | L9: 2104 | M9: 2111 | N9: 1779
A10: Católicos | B10: 5801 | C10: 1136 | D10: 798 | E10: 93 | F10: 235 | G10: 620 | H10: 628 | I10: 487 | J10: 289 | K10: 394 | L10: 470 | M10: 448 | N10: 203
A11: Civiles | B11: 19387 | C11: 1858 | D11: 1895 | E11: 2301 | F11: 1420 | G11: 1586 | H11: 1468 | I11: 1429 | J11: 1455 | K11: 1207 | L11: 1577 | M11: 1641 | N11: 1550
A12: Extranjeros2/ | B12: 619 | C12: 136 | D12: 42 | E12: 64 | F12: 33 | G12: 63 | H12: 46 | I12: 40 | J12: 37 | K12: 53 | L12: 57 | M12: 22 | N12: 26
A13: Defunciones | B13: 19243 | C13: 1900 | D13: 1208 | E13: 2071 | F13: 1260 | G13: 1866 | H13: 1658 | I13: 1590 | J13: 1655 | K13: 1640 | L13: 1746 | M13: 1792 | N13: 857
A14: Divorcios | B14: 11593 | C14: 780 | D14: 1139 | E14: 1359 | F14: 693 | G14: 1115 | H14: 1086 | I14: 442 | J14: 1314 | K14: 726 | L14: 1236 | M14: 1101 | N14: 602
A15: Separaciones Judiciales | B15: 51 | C15: 22 | D15: 0 | E15: 3 | F15: 0 | G15: 0 | H15: 4 | I15: 2 | J15: 0 | K15: 1 | L15: 18 | M15: 1 | N15: 0
A16: Reconocimientos | B16: 24817 | C16: 2002 | D16: 2333 | E16: 2394 | F16: 1812 | G16: 2712 | H16: 1011 | I16: 1330 | J16: 2988 | K16: 2228 | L16: 2919 | M16: 1937 | N16: 1151
A17: Legitimaciones | B17: 23 | C17: 3 | D17: 1 | E17: 3 | F17: 1 | G17: 0 | H17: 0 | I17: 0 | J17: 3 | K17: 0 | L17: 7 | M17: 5 | N17: 0
A18: Adopciones | B18: 216 | C18: 27 | D18: 17 | E18: 16 | F18: 12 | G18: 22 | H18: 13 | I18: 20 | J18: 22 | K18: 11 | L18: 20 | M18: 23 | N18: 13
A19: Impugnación de paternidad | B19: 396 | C19: 38 | D19: 18 | E19: 55 | F19: 19 | G19: 41 | H19: 25 | I19: 31 | J19: 24 | K19: 54 | L19: 45 | M19: 28 | N19: 18
A20: Investigación de paternidad | B20: 724 | C20: 38 | D20: 97 | E20: 54 | F20: 30 | G20: 64 | H20: 83 | I20: 13 | J20: 46 | K20: 115 | L20: 78 | M20: 65 | N20: 41
A21: Opciones 3/ | B21: 386 | C21: 87 | D21: 39 | E21: 41 | F21: 18 | G21: 26 | H21: 17 | I21: 10 | J21: 69 | K21: 10 | L21: 8 | M21: 42 | N21: 19
A22: Naturalizaciones | B22: 4400 | C22: 193 | D22: 317 | E22: 608 | F22: 516 | G22: 421 | H22: 386 | I22: 434 | J22: 361 | K22: 322 | L22: 369 | M22: 311 | N22: 162
A25: 1/ Todos los datos se refieren a hechos inscritos en el mes respectivo, no así a los ocurridos.
A27: 2/ Matrimonios inscritos, pero realizados en el extranjero.
A29: 3/ Trámite realizado en Actos Jurídicos.
A31: Fuente: Sección de Inscripciones, Oficina de Actos Jurídicos, Sección de Opciones y Naturalizaciones del Tribunal Supremo de Elecciones.
B34: =SUM(B8:B22)-B10-B11-B12 -> 164287

Sheet G3
A2: GRÁFICO 3 | K2: Nacimientos | L2: Defunciones
A3: COSTA RICA: NACIMIENTOS Y DEFUNCIONES INSCRITAS | K3: =SUM(K4:K15) -> 76631 | L3: =SUM(L4:L15) -> 19243
A4: POR MES, AL 31 DE DICIEMBRE DE 2012 | J4: ENE | K4: =+'[1]Tabla de datos'!C112 -> 6253 | L4: =+'[1]Tabla de datos'!C113 -> 1900
J5: FEB | K5: =+'[1]Tabla de datos'!D112 -> 6818 | L5: =+'[1]Tabla de datos'!D113 -> 1208
J6: MAR | K6: =+'[1]Tabla de datos'!E112 -> 7833 | L6: =+'[1]Tabla de datos'!E113 -> 2071
J7: ABR | K7: =+'[1]Tabla de datos'!F112 -> 3867 | L7: =+'[1]Tabla de datos'!F113 -> 1260
J8: MAY | K8: =+'[1]Tabla de datos'!G112 -> 8171 | L8: =+'[1]Tabla de datos'!G113 -> 1866
J9: JUN | K9: =+'[1]Tabla de datos'!H112 -> 6094 | L9: =+'[1]Tabla de datos'!H113 -> 1658
J10: JUL | K10: =+'[1]Tabla de datos'!I112 -> 5976 | L10: =+'[1]Tabla de datos'!I113 -> 1590
J11: AGO | K11: =+'[1]Tabla de datos'!J112 -> 6613 | L11: =+'[1]Tabla de datos'!J113 -> 1655
J12: SET | K12: =+'[1]Tabla de datos'!K112 -> 5986 | L12: =+'[1]Tabla de datos'!K113 -> 1640
J13: OCT | K13: =+'[1]Tabla de datos'!L112 -> 7600 | L13: =+'[1]Tabla de datos'!L113 -> 1746
J14: NOV | K14: =+'[1]Tabla de datos'!M112 -> 7160 | L14: =+'[1]Tabla de datos'!M113 -> 1792
J15: DIC | K15: =+'[1]Tabla de datos'!N112 -> 4260 | L15: =+'[1]Tabla de datos'!N113 -> 857
J17: Al pasar a imprenta y web, se debe pegar como valores para
J18: romper el vinculo con la tabla de datos
A26: Fuente: Cuadro 11.

Sheet G4 y G5
A2: GRÁFICO 4
A3: COSTA RICA: MATRIMONIOS INSCRITOS, SEGÚN CLASE DE INSCRIPCIÓN | K3: MATRIMONIOS INSCRITOS
A4: AL 31 DE DICIEMBRE DE 2012 | K4: Civiles | L4: =+'[1]Tabla de datos'!B116 -> 19387 | M4: =+L4/$L$7*100 -> 75.12302864
K5: Católicos | L5: =+'[1]Tabla de datos'!B115 -> 5801 | M5: =+L5/$L$7*100 -> 22.47839733
K6: Extranjeros | L6: =+'[1]Tabla de datos'!B117 -> 619 | M6: =+L6/$L$7*100 -> 2.39857403
K7: Total | L7: =SUM(L4:L6) -> 25807
K10: Al pasar a imprenta y web, se debe pegar como valores para
K11: romper el vinculo con la tabla de datos
A29: Fuente: Cuadro 11.
A32: GRÁFICO 5 | K32: MATRIMONIOS vs DIVORCIOS
A33: COSTA RICA: MATRIMONIOS Y DIVORCIOS INSCRITOS | L33: Matrimonios | M33: Divorcios
A34: POR MES, AL 31 DE DICIEMBRE DE 2012 | K34: ENE | L34: =+'[1]Tabla de datos'!$C$114 -> 3130 | M34: =+'[1]Tabla de datos'!$C$120 -> 780
K35: FEB | L35: =+'[1]Tabla de datos'!$D$114 -> 2735 | M35: =+'[1]Tabla de datos'!$D$120 -> 1139
K36: MAR | L36: =+'[1]Tabla de datos'!$E$114 -> 2458 | M36: =+'[1]Tabla de datos'!$E$120 -> 1359
K37: ABR | L37: =+'[1]Tabla de datos'!$F$114 -> 1688 | M37: =+'[1]Tabla de datos'!$F$120 -> 693
K38: MAY | L38: =+'[1]Tabla de datos'!$G$114 -> 2269 | M38: =+'[1]Tabla de datos'!$G$120 -> 1115
K39: JUN | L39: =+'[1]Tabla de datos'!$H$114 -> 2142 | M39: =+'[1]Tabla de datos'!$H$120 -> 1086
K40: JUL | L40: =+'[1]Tabla de datos'!$I$114 -> 1956 | M40: =+'[1]Tabla de datos'!$I$120 -> 442
K41: AGO | L41: =+'[1]Tabla de datos'!$J$114 -> 1781 | M41: =+'[1]Tabla de datos'!$J$120 -> 1314
K42: SET | L42: =+'[1]Tabla de datos'!$K$114 -> 1654 | M42: =+'[1]Tabla de datos'!$K$120 -> 726
K43: OCT | L43: =+'[1]Tabla de datos'!$L$114 -> 2104 | M43: =+'[1]Tabla de datos'!$L$120 -> 1236
K44: NOV | L44: =+'[1]Tabla de datos'!$M$114 -> 2111 | M44: =+'[1]Tabla de datos'!$M$120 -> 1101
K45: DIC | L45: =+'[1]Tabla de datos'!$N$114 -> 1779 | M45: =+'[1]Tabla de datos'!$N$120 -> 602
L46: =SUM(L34:L45) -> 25807 | M46: =SUM(M34:M45) -> 11593
K49: Al pasar a imprenta y web, se debe pegar como valores para
K50: romper el vinculo con la tabla de datos
A60: Fuente: Cuadro 11.

Sheet 12
A1: CUADRO 12
A2: COSTA RICA: NACIMIENTOS INSCRITOS, POR PROVINCIA Y PARTIDO ESPECIAL
A3: SEGÚN MES, AL 31 DE DICIEMBRE DE 2012
A5: Mes | B5: Total | C5: San José | D5: Alajuela | E5: Cartago | F5: Heredia | G5: Guanacaste | H5: Puntarenas | I5: Limón | J5: Partido especial 1/
A7: Costa Rica | B7: =SUM(B9:B20) -> 76631 | C7: =SUM(C9:C20) -> 31639 | D7: =SUM(D9:D20) -> 12739 | E7: 6735 | F7: 4921 | G7: 5830 | H7: 5421 | I7: 6714 | J7: 2632
A9: Enero | B9: =SUM(C9:J9) -> 6253 | C9: 3425 | D9: 1072 | E9: 513 | F9: 357 | G9: 164 | H9: 179 | I9: 251 | J9: 292
A10: Febrero | B10: =SUM(C10:J10) -> 6818 | C10: 2638 | D10: 920 | E10: 496 | F10: 406 | G10: 711 | H10: 498 | I10: 873 | J10: 276
A11: Marzo | B11: 7833 | C11: 2980 | D11: 1143 | E11: 698 | F11: 462 | G11: 724 | H11: 801 | I11: 633 | J11: 392
A12: Abril | B12: 3867 | C12: 2113 | D12: 464 | E12: 354 | F12: 273 | G12: 200 | H12: 142 | I12: 228 | J12: 93
A13: Mayo | B13: 8171 | C13: 2861 | D13: 1514 | E13: 1229 | F13: 352 | G13: 729 | H13: 740 | I13: 513 | J13: 233
A14: Junio | B14: =SUM(C14:J14) -> 6094 | C14: 2582 | D14: 1335 | E14: 425 | F14: 598 | G14: 295 | H14: 358 | I14: 319 | J14: 182
A15: Julio | B15: 5976 | C15: 2242 | D15: 983 | E15: 490 | F15: 339 | G15: 395 | H15: 568 | I15: 647 | J15: 312
A16: Agosto | B16: 6613 | C16: 2890 | D16: 1044 | E16: 461 | F16: 482 | G16: 500 | H16: 514 | I16: 625 | J16: 97
A17: Setiembre | B17: 5986 | C17: 2928 | D17: 1072 | E17: 314 | F17: 311 | G17: 368 | H17: 398 | I17: 455 | J17: 140
A18: Octubre | B18: 7600 | C18: 2724 | D18: 1284 | E18: 738 | F18: 484 | G18: 696 | H18: 483 | I18: 898 | J18: 293
A19: Noviembre | B19: 7160 | C19: 2653 | D19: 1181 | E19: 650 | F19: 568 | G19: 697 | H19: 476 | I19: 766 | J19: 169
A20: Diciembre | B20: 4260 | C20: 1603 | D20: 727 | E20: 367 | F20: 289 | G20: 351 | H20: 264 | I20: 506 | J20: 153
A23: 1/ Inscripción de nacimientos de costarricenses nacidos en el extranjero.
A25: Fuente: Sección de Inscripciones del Tribunal Supremo de Elecciones.

Sheet 13
A1: CUADRO 13
A2: COSTA RICA: DEFUNCIONES INSCRITAS, POR PROVINCIA, SEGÚN MES
A3: AL 30 DE DICIEMBRE DE 2012
A5: Mes | B5: Total | C5: San José | D5: Alajuela | E5: Cartago | F5: Heredia | G5: Guanacaste | H5: Puntarenas | I5: Limón
A7: Costa Rica | B7: =SUM(B9:B20) -> 19243 | C7: =SUM(C9:C20) -> 9335 | D7: 2720 | E7: 1581 | F7: 1438 | G7: 1428 | H7: 1445 | I7: 1296
A9: Enero | B9: ='[1]D (3-14)'!$C$112 -> 1900 | C9: 950 | D9: 265 | E9: 147 | F9: 102 | G9: 162 | H9: 170 | I9: 104
A10: Febrero | B10: ='[1]D (3-14)'!$D$112 -> 1208 | C10: 602 | D10: 114 | E10: 112 | F10: 120 | G10: 95 | H10: 97 | I10: 68
A11: Marzo | B11: ='[1]D (3-14)'!$E$112 -> 2071 | C11: 1168 | D11: 270 | E11: 137 | F11: 132 | G11: 139 | H11: 125 | I11: 100
A12: Abril | B12: ='[1]D (3-14)'!$F$112 -> 1260 | C12: 550 | D12: 168 | E12: 78 | F12: 147 | G12: 83 | H12: 96 | I12: 138
A13: Mayo | B13: ='[1]D (3-14)'!$G$112 -> 1866 | C13: 979 | D13: 235 | E13: 101 | F13: 90 | G13: 133 | H13: 137 | I13: 191
A14: Junio | B14: ='[1]D (3-14)'!$H$112 -> 1658 | C14: 858 | D14: 236 | E14: 156 | F14: 90 | G14: 94 | H14: 115 | I14: 109
A15: Julio | B15: ='[1]D (3-14)'!$I$112 -> 1590 | C15: 722 | D15: 244 | E15: 155 | F15: 95 | G15: 104 | H15: 161 | I15: 109
A16: Agosto | B16: ='[1]D (3-14)'!$J$112 -> 1655 | C16: 756 | D16: 313 | E16: 85 | F16: 143 | G16: 115 | H16: 96 | I16: 147
A17: Setiembre | B17: ='[1]D (3-14)'!$K$112 -> 1640 | C17: 796 | D17: 220 | E17: 111 | F17: 135 | G17: 135 | H17: 133 | I17: 110
A18: Octubre | B18: ='[1]D (3-14)'!$L$112 -> 1746 | C18: 876 | D18: 269 | E18: 184 | F18: 124 | G18: 102 | H18: 107 | I18: 84
A19: Noviembre | B19: ='[1]D (3-14)'!$M$112 -> 1792 | C19: 619 | D19: 288 | E19: 245 | F19: 164 | G19: 212 | H19: 167 | I19: 97
A20: Diciembre | B20: ='[1]D (3-14)'!$N$112 -> 857 | C20: 459 | D20: 98 | E20: 70 | F20: 96 | G20: 54 | H20: 41 | I20: 39
A23: Fuente: Sección de Inscripciones del Tribunal Supremo de Elecciones.

Sheet 14
A1: CUADRO 14
A2: COSTA RICA: SOLICITUDES DE CÉDULA RECIBIDAS, POR CLASE DE SOLICITUD
A3: SEGÚN MES, AL 31 DE DICIEMBRE DE 2012
A4: (Absoluto y Porcentaje)
A6: Mes | B6: Clase de solicitud
B7: Absoluto | F7: Porcentaje
B8: Total | C8: Primera vez | D8: Duplicado | E8: Traslado | F8: Total | G8: Primera vez | H8: Duplicado | I8: Traslado
A10: TOTAL | B10: =SUM(B12:B23) -> 632537 | C10: =SUM(C12:C23) -> 84279 | D10: 547633 | E10: 625 | F10: =SUM(G10:I10) -> 100 | G10: =C10/$B10*100 -> 13.32396366 | H10: =D10/$B10*100 -> 86.57722789 | I10: =E10/$B10*100 -> 0.09880844915
A12: Enero | B12: 66977 | C12: 8844 | D12: 58109 | E12: 24 | F12: =SUM(G12:I12) -> 100 | G12: =C12/$B12*100 -> 13.2045329 | H12: =D12/$B12*100 -> 86.7596339 | I12: =E12/$B12*100 -> 0.03583319647
A13: Febrero | B13: 55129 | C13: 6032 | D13: 49069 | E13: 28 | F13: 100 | G13: =C13/$B13*100 -> 10.94160968 | H13: 89.00760036 | I13: 0.05078996535
A14: Marzo | B14: 55350 | C14: 6720 | D14: 48582 | E14: 48 | F14: 100 | G14: 12.14092141 | H14: 87.77235772 | I14: 0.08672086721
A15: Abril | B15: 41405 | C15: 6007 | D15: 35361 | E15: 37 | F15: 100 | G15: 14.50790967 | H15: 85.40272914 | I15: 0.08936118826
A16: Mayo | B16: 56113 | C16: 7237 | D16: 48832 | E16: 44 | F16: 100 | G16: 12.8971896 | H16: 87.0243972 | I16: 0.07841320193
A17: Junio | B17: 51505 | C17: 6729 | D17: 44727 | E17: 49 | F17: 100 | G17: 13.064751 | H17: 86.84011261 | I17: 0.09513639452
A18: Julio | B18: 53857 | C18: 7341 | D18: 46478 | E18: 38 | F18: 100 | G18: 13.63054013 | H18: 86.29890265 | I18: 0.07055721633
A19: Agosto | B19: 55443 | C19: 7524 | D19: 47860 | E19: 59 | F19: 100 | G19: 13.57069423 | H19: 86.32289018 | I19: 0.106415598
A20: Setiembre | B20: 49901 | C20: 7031 | D20: 42797 | E20: 73 | F20: =SUM(G20:I20) -> 100 | G20: 14.089898 | H20: 85.76381235 | I20: 0.1462896535
A21: Octubre | B21: 57142 | C21: 8070 | D21: 48980 | E21: 92 | F21: 100 | G21: 14.12271184 | H21: 85.71628574 | I21: 0.161002415
A22: Noviembre | B22: 54584 | C22: 7887 | D22: 46627 | E22: 70 | F22: 100 | G22: 14.44928917 | H22: 85.42246812 | I22: 0.1282427085
A23: Diciembre | B23: 35131 | C23: 4857 | D23: 30211 | E23: 63 | F23: 100 | G23: 13.82539637 | H23: 85.99527483 | I23: 0.1793287979
A26: Fuente: Sección Solicitudes Cedulares y Coordinación de Servicios Regionales del Tribunal Supremo de Elecciones.

Sheet G6
A2: GRÁFICO 6
A3: COSTA RICA: PORCENTAJE DE SOLICITUDES DE CÉDULA RECIBIDAS | J3: SOLICITUDES CEDULARES RECIBIDAS
A4: POR CLASE DE SOLICITUD, AL 31 DE DICIEMBRE DE 2012 | J4: TOTAL | K4: =SUM(K5:K7) -> 632537
J5: Duplicado | K5: =+'[1]Tabla de datos'!B31 -> 547633 | L5: =+K5/$K$4*100 -> 86.57722789
J6: Primera vez | K6: =+'[1]Tabla de datos'!B30 -> 84279 | L6: =+K6/$K$4*100 -> 13.32396366
J7: Traslado | K7: ='[1]Tabla de datos'!B32 -> 625 | L7: =+K7/$K$4*100 -> 0.09880844915
J10: Al pasar a imprenta y web, se debe pegar como valores para
J11: romper el vinculo con la tabla de datos
A30: Fuente: Cuadro 14.

Sheet 15
A1: CUADRO 15
A2: COSTA RICA: SOLICITUDES DE CÉDULA RECIBIDAS
A3: POR FUENTE DE INGRESO, SEGÚN MES
A4: AL 31 DE DICIEMBRE DE 2012
A6: Mes | B6: Fuente de ingreso
B7: Total | C7: Oficina central | D7: Oficinas regionales 1/ | E7: Consulados | F7: Cedulación a domicilio | G7: Cedulación ambulante
A9: TOTAL | B9: 632537 | C9: 220617 | D9: 387586 | E9: 4855 | F9: 3674 | G9: 15805
A11: Enero | B11: 66977 | C11: 24840 | D11: 41373 | E11: 318 | F11: 421 | G11: 25
A12: Febrero | B12: 55129 | C12: 19800 | D12: 34342 | E12: 334 | F12: 255 | G12: 398
A13: Marzo | B13: 55350 | C13: 19181 | D13: 33318 | E13: 387 | F13: 397 | G13: 2067
A14: Abril | B14: 41405 | C14: 14339 | D14: 26479 | E14: 334 | F14: 243 | G14: 10
A15: Mayo | B15: 56113 | C15: 19044 | D15: 34237 | E15: 729 | F15: 393 | G15: 1710
A16: Junio | B16: 51505 | C16: 17618 | D16: 31596 | E16: 448 | F16: 279 | G16: 1564
A17: Julio | B17: 53857 | C17: 19725 | D17: 33493 | E17: 346 | F17: 293 | G17: 0
A18: Agosto | B18: 55443 | C18: 18617 | D18: 33091 | E18: 562 | F18: 275 | G18: 2898
A19: Setiembre | B19: 49901 | C19: 16449 | D19: 29457 | E19: 469 | F19: 347 | G19: 3179
A20: Octubre | B20: 57142 | C20: 18990 | D20: 35209 | E20: 252 | F20: 302 | G20: 2389
A21: Noviembre | B21: 54584 | C21: 18903 | D21: 33389 | E21: 442 | F21: 285 | G21: 1565
A22: Diciembre | B22: 35131 | C22: 13111 | D22: 21602 | E22: 234 | F22: 184 | G22: 0
A25: 1/ El Tribunal Supremo de Elecciones cuenta con 32 Oficinas Regionales.
A27: Fuente: Sección Solicitudes Cedulares y Coordinación de Servicios Regionales del Tribunal Supremo de Elecciones.

Sheet G7
A2: GRÁFICO 7
A3: COSTA RICA: PORCENTAJE DE SOLICITUDES DE CÉDULA RECIBIDAS | J3: SOLICITUDES CEDULARES RECIBIDAS
A4: POR FUENTE DE INGRESO, AL 31 DE DICIEMBRE DE 2012 | J4: TOTAL | K4: =SUM(K5:K8) -> 632537
J5: Oficinas Regionales | K5: =+'[1]Tabla de datos'!B39 -> 387586 | L5: =+K5/$K$4*100 -> 61.27483452
J6: Oficina Central | K6: =+'[1]Tabla de datos'!B35 -> 220617 | L6: =+K6/$K$4*100 -> 34.8781178
J7: Cedulación Ambulante | K7: =+'[1]Tabla de datos'!B51 -> 15805 | L7: =+K7/$K$4*100 -> 2.498668062
J8: Consulados y domicilio | K8: =+'[1]Tabla de datos'!B43+'[1]Tabla de datos'!B47 -> 8529 | L8: =+K8/$K$4*100 -> 1.34837962
J11: Chequear que el orden sea de mayor a menor
J14: Al pasar a imprenta y web, se debe pegar como valores para
J15: romper el vinculo con la tabla de datos
A29: Fuente: Cuadro 15.

Sheet 16
A1: CUADRO 16
A2: COSTA RICA: SOLICITUDES DE CÉDULA RECIBIDAS, POR CLASE DE SOLICITUD
A3: SEGÚN PROVINCIA, AL 31 DE DICIEMBRE DE 2012
A4: (Absoluto y Porcentaje)
A6: Provincia | B6: Clase de solicitud
B7: Absoluto | F7: Porcentaje
B8: Total | C8: Primera vez | D8: Duplicado | E8: Traslado | F8: Total | G8: Primera vez | H8: Duplicado | I8: Traslado
A10: Costa Rica | B10: =SUM(C10:E10) -> 632537 | C10: =SUM(C12:C18) -> 84279 | D10: 547633 | E10: 625 | F10: =SUM(F12:F18) -> 100 | G10: 100 | H10: 100 | I10: 100
A12: San José | B12: 265526 | C12: 31498 | D12: 233743 | E12: 285 | F12: =(B12/B$10*100) -> 41.97793963 | G12: =(C12/C$10*100) -> 37.37348568 | H12: =D12/D$10*100 -> 42.68241687 | I12: =E12/E$10*100 -> 45.6
A13: Alajuela | B13: 104131 | C13: 15838 | D13: 88191 | E13: 102 | F13: =(B13/B$10*100) -> 16.46243619 | G13: 18.79234447 | H13: =D13/D$10*100 -> 16.10403318 | I13: 16.32
A14: Cartago | B14: 48723 | C14: 7856 | D14: 40845 | E14: 22 | F14: 7.702790509 | G14: 9.32142052 | H14: 7.458462145 | I14: 3.52
A15: Heredia | B15: 45849 | C15: 6826 | D15: 38929 | E15: 94 | F15: 7.248429736 | G15: 8.099289265 | H15: 7.108592798 | I15: =E15/E$10*100 -> 15.04
A16: Guanacaste | B16: 44471 | C16: 6178 | D16: 38271 | E16: 22 | F16: 7.030576867 | G16: 7.330414457 | H16: 6.988439338 | I16: 3.52
A17: Puntarenas | B17: 59642 | C17: 8068 | D17: 51487 | E17: 87 | F17: 9.429013639 | G17: 9.572965982 | H17: 9.401734373 | I17: 13.92
A18: Limón | B18: 64195 | C18: 8015 | D18: 56167 | E18: 13 | F18: 10.14881343 | G18: 9.510079617 | H18: 10.2563213 | I18: 2.08
A21: Fuente: Sección Solicitudes Cedulares y Coordinación de Servicios Regionales del Tribunal Supremo de Elecciones.

Sheet G8
A2: GRÁFICO 8
A3: COSTA RICA: SOLICITUDES DE CÉDULA RECIBIDAS, POR CLASE DE SOLICITUD | L3: PV | M3: DUP | N3: TRASL
A4: SEGÚN PROVINCIA, AL 31 DE DICIEMBRE DE 2012 | K4: San José | L4: =+'[1]Tabla de datos'!B58 -> 31498 | M4: =+'[1]Tabla de datos'!B67 -> 233743 | N4: =+'[1]Tabla de datos'!B76 -> 285
K5: Alajuela | L5: =+'[1]Tabla de datos'!B59 -> 15838 | M5: =+'[1]Tabla de datos'!B68 -> 88191 | N5: =+'[1]Tabla de datos'!B77 -> 102
K6: Limón | L6: =+'[1]Tabla de datos'!B64 -> 8015 | M6: =+'[1]Tabla de datos'!B73 -> 56167 | N6: =+'[1]Tabla de datos'!B82 -> 13
K7: Puntarenas | L7: =+'[1]Tabla de datos'!B63 -> 8068 | M7: =+'[1]Tabla de datos'!B72 -> 51487 | N7: =+'[1]Tabla de datos'!B81 -> 87
K8: Cartago | L8: =+'[1]Tabla de datos'!B60 -> 7856 | M8: =+'[1]Tabla de datos'!B69 -> 40845 | N8: =+'[1]Tabla de datos'!B78 -> 22
K9: Heredia | L9: =+'[1]Tabla de datos'!B61 -> 6826 | M9: =+'[1]Tabla de datos'!B70 -> 38929 | N9: =+'[1]Tabla de datos'!B79 -> 94 | O9: =SUM(L11:N11) -> 632537
K10: Guanacaste | L10: =+'[1]Tabla de datos'!B62 -> 6178 | M10: =+'[1]Tabla de datos'!B71 -> 38271 | N10: =+'[1]Tabla de datos'!B80 -> 22
K11: Total | L11: =SUM(L4:L10) -> 84279 | M11: =SUM(M4:M10) -> 547633 | N11: =SUM(N4:N10) -> 625
L13: Duplicado | M13: Primera vez | N13: Traslado
K14: Guanacaste | L14: =M10/1000 -> 38.271 | M14: =L10/1000 -> 6.178 | N14: =N10/1000 -> 0.022
K15: Heredia | L15: =M9/1000 -> 38.929 | M15: =L9/1000 -> 6.826 | N15: =N9/1000 -> 0.094
K16: Cartago | L16: =M8/1000 -> 40.845 | M16: =L8/1000 -> 7.856 | N16: =N8/1000 -> 0.022
K17: Puntarenas | L17: =M7/1000 -> 51.487 | M17: =L7/1000 -> 8.068 | N17: =N7/1000 -> 0.087
K18: Limón | L18: =M6/1000 -> 56.167 | M18: =L6/1000 -> 8.015 | N18: =N6/1000 -> 0.013
K19: Alajuela | L19: =M5/1000 -> 88.191 | M19: =L5/1000 -> 15.838 | N19: =N5/1000 -> 0.102
K20: San José | L20: =M4/1000 -> 233.743 | M20: =L4/1000 -> 31.498 | N20: =N4/1000 -> 0.285
K21: Total | L21: =SUM(L14:L20) -> 547.633 | M21: =SUM(M14:M20) -> 84.279 | N21: =SUM(N14:N20) -> 0.625
A29: Fuente: Cuadro 16.

Sheet 17
A1: CUADRO 17
A2: COSTA RICA: CANTIDAD DE RESOLUCIONES, POR TIPO DE RESOLUCIÓN, SEGÚN MES
A3: AL 31 DE DICIEMBRE DE 2012
A5: Mes | B5: Total | C5: Tipo de resolución
C6: Electorales | D6: Inscripciones | E6: Municipales | F6: Naturalizaciones | G6: Ocursos, Paternidad y Excusas | H6: Procedimientos
A8: Total | B8: =SUM(C8:H8) -> 8789 | C8: =SUM(C10:C21) -> 157 | D8: 960 | E8: 145 | F8: 7063 | G8: 106 | H8: 358
A10: Enero | B10: =SUM(C10:H10) -> 1003 | C10: 12 | D10: 2 | E10: 6 | F10: 940 | G10: 0 | H10: 43
A11: Febrero | B11: 829 | C11: 17 | D11: 83 | E11: 13 | F11: 672 | G11: 15 | H11: 29
A12: Marzo | B12: 810 | C12: 16 | D12: 50 | E12: 15 | F12: 657 | G12: 24 | H12: 48
A13: Abril | B13: 624 | C13: 8 | D13: 122 | E13: 14 | F13: 405 | G13: 6 | H13: 69
A14: Mayo | B14: 850 | C14: 16 | D14: 134 | E14: 26 | F14: 627 | G14: 10 | H14: 37
A15: Junio | B15: 805 | C15: 16 | D15: 67 | E15: 17 | F15: 665 | G15: 3 | H15: 37
A16: Julio | B16: 629 | C16: 10 | D16: 86 | E16: 7 | F16: 491 | G16: 12 | H16: 23
A17: Agosto | B17: 559 | C17: 10 | D17: 97 | E17: 12 | F17: 417 | G17: 4 | H17: 19
A18: Setiembre | B18: 826 | C18: 9 | D18: 71 | E18: 9 | F18: 719 | G18: 3 | H18: 15
A19: Octubre | B19: 810 | C19: 14 | D19: 67 | E19: 11 | F19: 692 | G19: 15 | H19: 11
A20: Noviembre | B20: 590 | C20: 14 | D20: 116 | E20: 12 | F20: 423 | G20: 10 | H20: 15
A21: Diciembre | B21: 454 | C21: 15 | D21: 65 | E21: 3 | F21: 355 | G21: 4 | H21: 12
A24: Fuente: Secretaría del Tribunal Supremo de Elecciones.

Sheet 18
A1: CUADRO 18
A2: COSTA RICA: CANTIDAD DE RESOLUCIONES ELECTORALES
A3: POR ACCIÓN TRAMITADA, SEGÚN MES
A4: AL 31 DE DICIEMBRE DE 2012
A6: Mes | B6: Acción Tramitada
B7: Total | C7: Financiamiento de Partidos Políticos | D7: Hermenéutica Electoral | E7: Amparo Electoral | F7: Denuncia beligerancia Política | G7: Democracia semidirecta | H7: Apelación electoral | I7: Otras 1/
A9: Total | B9: =SUM(B11:B22) -> 157 | C9: =SUM(C11:C22) -> 39 | D9: 34 | E9: 28 | F9: 15 | G9: =SUM(G11:G22) -> 10 | H9: =SUM(H11:H22) -> 9 | I9: =SUM(I11:I22) -> 22
A11: Enero | B11: =SUM(C11:I11) -> 12 | C11: 1 | D11: 1 | E11: 3 | F11: 4 | G11: 0 | H11: 1 | I11: 2
A12: Febrero | B12: =SUM(C12:I12) -> 17 | C12: 4 | D12: 5 | E12: 1 | F12: 2 | G12: 0 | H12: 1 | I12: 4
A13: Marzo | B13: 16 | C13: 5 | D13: 3 | E13: 1 | F13: 1 | G13: 0 | H13: 2 | I13: 4
A14: Abril | B14: 8 | C14: 4 | D14: 1 | E14: 1 | F14: 1 | G14: 1 | H14: 0 | I14: 0
A15: Mayo | B15: 16 | C15: 3 | D15: 5 | E15: 3 | F15: 2 | G15: 0 | H15: 0 | I15: 3
A16: Junio | B16: 16 | C16: 4 | D16: 2 | E16: 4 | F16: 2 | G16: 2 | H16: 1 | I16: 1
A17: Julio | B17: 10 | C17: 1 | D17: 4 | E17: 1 | F17: 0 | G17: 3 | H17: 0 | I17: 1
A18: Agosto | B18: 10 | C18: 6 | D18: 1 | E18: 0 | F18: 1 | G18: 0 | H18: 0 | I18: 2
A19: Setiembre | B19: 9 | C19: 1 | D19: 3 | E19: 3 | F19: 1 | G19: 1 | H19: 0 | I19: 0
A20: Octubre | B20: 14 | C20: 3 | D20: 3 | E20: 3 | F20: 0 | G20: 2 | H20: 2 | I20: 1
A21: Noviembre | B21: 14 | C21: 3 | D21: 1 | E21: 6 | F21: 1 | G21: 0 | H21: 1 | I21: 2
A22: Diciembre | B22: 15 | C22: 4 | D22: 5 | E22: 2 | F22: 0 | G22: 1 | H22: 1 | I22: 2
A25: 1/ Incluye cancelación de credenciales de Supremos Poderes, demanda de nulidad y otros asuntos electorales.
A27: Fuente: Secretaría del Tribunal Supremo de Elecciones.
A30: Información generada por Eladio.

Sheet 19
A1: CUADRO 19
A2: COSTA RICA: CANTIDAD DE RESOLUCIONES MUNICIPALES
A3: POR RESULTADO DE LA GESTIÓN, SEGÚN MES | H3: Menu
A4: AL 31 DE DICIEMBRE DE 2012
A6: Mes | B6: Resultado de la Gestión
B7: Total | C7: Cancelación de credenciales | D7: Rechazo de plano | E7: Sin lugar | F7: Se repone vacante | G7: Revoca parcialmente resolución | I7: Menu
A9: Total | B9: =SUM(B11:B22) -> 145 | C9: 95 | D9: 41 | E9: 6 | F9: 2 | G9: 1
A11: Enero | B11: =SUM(C11:G11) -> 6 | C11: 4 | D11: 0 | E11: 2 | F11: 0 | G11: 0
A12: Febrero | B12: =SUM(C12:G12) -> 13 | C12: 9 | D12: 3 | E12: 1 | F12: 0 | G12: 0
A13: Marzo | B13: 15 | C13: 7 | D13: 8 | E13: 0 | F13: 0 | G13: 0
A14: Abril | B14: 14 | C14: 10 | D14: 4 | E14: 0 | F14: 0 | G14: 0
A15: Mayo | B15: 26 | C15: 17 | D15: 9 | E15: 0 | F15: 0 | G15: 0
A16: Junio | B16: 17 | C16: 13 | D16: 3 | E16: 0 | F16: 1 | G16: 0
A17: Julio | B17: 7 | C17: 4 | D17: 3 | E17: 0 | F17: 0 | G17: 0
A18: Agosto | B18: 12 | C18: 9 | D18: 2 | E18: 0 | F18: 1 | G18: 0
A19: Setiembre | B19: 9 | C19: 8 | D19: 1 | E19: 0 | F19: 0 | G19: 0
A20: Octubre | B20: 11 | C20: 5 | D20: 5 | E20: 1 | F20: 0 | G20: 0
A21: Noviembre | B21: 12 | C21: 7 | D21: 3 | E21: 2 | F21: 0 | G21: 0
A22: Diciembre | B22: 3 | C22: 2 | D22: 0 | E22: 0 | F22: 0 | G22: 1
A25: Fuente: Secretaría del Tribunal Supremo de Elecciones.
A31: Información generada por Eladio.

Sheet 20
A1: CUADRO 20
A2: COSTA RICA: TRÁMITES RELACIONADOS CON EL INGRESO DE SOLICITUDES DE
A3: DETERMINACIÓN DE PATERNIDAD1/, POR TIPO, SEGÚN MES
A4: AL 31 DE DICIEMBRE DE 2012
A6: Mes | B6: Ingreso de solicitudes de determinación de paternidad
B7: Total | D7: Paternidad de oficio 2/ | F7: Declaración voluntaria 3/ | H7: Casos enviados a notificar 4/ | J7: Solicitudes prueba de ADN 5/ | L7: Devueltas por el correo 6/ | N7: Información incompleta 7/
A9: Enero | B9: =SUM(D9:N9) -> 48941 | D9: 496 | F9: 19374 | H9: 2839 | J9: 19048 | L9: 3875 | N9: 3309
A10: Febrero | B10: =SUM(D10:N10) -> 49302 | D10: 498 | F10: 19462 | H10: 2843 | J10: 19272 | L10: 3908 | N10: 3319
A11: Marzo | B11: =SUM(D11:N11) -> 49738 | D11: 503 | F11: 19491 | H11: 2975 | J11: 19589 | L11: 3843 | N11: 3337
A12: Abril | B12: =SUM(D12:N12) -> 50063 | D12: 518 | F12: 19587 | H12: 3012 | J12: 19769 | L12: 3837 | N12: 3340
A13: Mayo | B13: =SUM(D13:N13) -> 50959 | D13: 531 | F13: 19799 | H13: 3192 | J13: 20115 | L13: 3953 | N13: 3369
A14: Junio | B14: 51516 | D14: 552 | F14: 19819 | H14: 3352 | J14: 20518 | L14: 3910 | N14: 3365
A15: Julio | B15: 52084 | D15: 552 | F15: 19910 | H15: 3460 | J15: 20887 | L15: 3904 | N15: 3371
A16: Agosto | B16: 52661 | D16: 572 | F16: 20048 | H16: 3465 | J16: 21252 | L16: 4005 | N16: 3319
A17: Setiembre | B17: 53302 | D17: 576 | F17: 20279 | H17: 3517 | J17: 21735 | L17: 3902 | N17: 3293
A18: Octubre | B18: 53934 | D18: 631 | F18: 20443 | H18: 3539 | J18: 21967 | L18: 3990 | N18: 3364
A19: Noviembre | B19: 54319 | D19: 681 | F19: 20623 | H19: 3409 | J19: 22406 | L19: 3877 | N19: 3323
A20: Diciembre | B20: 54465 | D20: 681 | F20: 20770 | H20: 3093 | J20: 22660 | L20: 3977 | N20: 3284
A23: 1/ Datos acumulados desde que se promulgó la Ley 8101 DE Paternidad Responsable, en abril de 2001.
A25: 2/ Presuntos padres notificados que no se presentan en el término de 10 días y como consecuencia se aplica la paternidad
A26: por presunción.
A28: 3/ Padres que se presentan a firmar, aceptando la paternidad.
A30: 4/ Expedientes ingresados que aún no han sido notificados.
A32: 5/ Casos enviados al laboratorio para realizar la prueba de ADN.
A34: 6/ Citatorios enviados al padre que han sido devueltos por el correo por dirección inexacta.
A36: 7/ Casos de solicitudes en los que no se puede enviar citatorio al padre por no tener nombre y apellidos o dirección inexacta.
A38: Fuente: Sección de Inscripciones del Tribunal Supremo de Elecciones.

Sheet 21
A1: CUADRO 21
A2: COSTA RICA: TRÁMITES DE SOLICITUD DE PRUEBAS DE ADN PARA DETERMINACIÓN DE PATERNIDAD 1/
A3: POR TIPO DE RESULTADO DE LA GESTIÓN, SEGÚN MES, AL 31 DE DICIEMBRE DE 2012
A5: Mes | B5: Total de trámites | D5: Resultado de la gestión
D6: Resultado | K6: Pendiente de realizar prueba | T6: Cita pendiente de asignar | V6: Resultados pendientes de entrega
D7: Total | F7: Positivo | H7: Negativo | K7: Total | M7: Padre no se presentó | O7: Madre no se presentó | Q7: Ninguno se presentó
A9: Enero | B9: 19048 | D9: 13320 | F9: 10525 | H9: 2795 | K9: 4158 | M9: 1598 | O9: 1270 | Q9: 1290 | T9: 39 | V9: 1531
A10: Febrero | B10: 19272 | D10: 13482 | F10: 10638 | H10: 2844 | K10: 4220 | M10: 1617 | O10: 1296 | Q10: 1307 | T10: 27 | V10: 1543
A11: Marzo | B11: 19589 | D11: 13810 | F11: 10890 | H11: 2920 | K11: 4272 | M11: 1632 | O11: 1317 | Q11: 1323 | T11: 38 | V11: 1469
A12: Abril | B12: 19769 | D12: 14017 | F12: 11050 | H12: 2967 | K12: 4304 | M12: 1622 | O12: 1342 | Q12: 1340 | T12: 40 | V12: 1408
A13: Mayo | B13: 20115 | D13: 14476 | F13: 11396 | H13: 3080 | K13: 4312 | M13: 1650 | O13: 1330 | Q13: 1332 | T13: 86 | V13: 1241
A14: Junio | B14: 20518 | D14: 14888 | F14: 11693 | H14: 3195 | K14: 4368 | M14: 1662 | O14: 1352 | Q14: 1354 | T14: 123 | V14: 1139
A15: Julio | B15: 20887 | D15: 15085 | F15: 11843 | H15: 3242 | K15: 4445 | M15: 1691 | O15: 1364 | Q15: 1390 | T15: 210 | V15: 1147
A16: Agosto | B16: 21252 | D16: 15313 | F16: 12018 | H16: 3295 | K16: 4519 | M16: 1719 | O16: 1387 | Q16: 1413 | T16: 57 | V16: 1363
A17: Setiembre | B17: 21735 | D17: 15553 | F17: 12218 | H17: 3335 | K17: 4520 | M17: 1723 | O17: 1378 | Q17: 1419 | T17: 242 | V17: 1420
A18: Octubre | B18: 21967 | D18: 15874 | F18: 12459 | H18: 3415 | K18: 4587 | M18: 1740 | O18: 1397 | Q18: 1450 | T18: 193 | V18: 1313
A19: Noviembre | B19: 22406 | D19: 16184 | F19: 12682 | H19: 3502 | K19: 4612 | M19: 1755 | O19: 1399 | Q19: 1458 | T19: 198 | V19: 1412
A20: Diciembre | B20: 22660 | D20: 16292 | F20: 12764 | H20: 3528 | K20: 4656 | M20: 1773 | O20: 1411 | Q20: 1472 | T20: 312 | V20: 1400
A23: 1/ Casos registrados desde que se promulgó la ley en abril de 2001.
A25: Fuente: Sección de Inscripciones del Tribunal Supremo de Elecciones.

Sheet 22
A1: CUADRO 22
A2: COSTA RICA: RESULTADO DE PRUEBAS DE ADN REALIZADAS 1/
A3: PARA DETERMINACIÓN DE PATERNIDAD, SEGÚN MES
A4: AL 31 DE DICIEMBRE DE 2012
A6: Mes | B6: Total | D6: Absoluto | I6: Porcentaje
D7: Positivo | F7: Negativo | I7: Positivo | K7: Negativo
A9: Enero | B9: 13320 | D9: 10525 | F9: 2795 | I9: =+D9/B9*100 -> 79.01651652 | K9: =+F9/B9*100 -> 20.98348348
A10: Febrero | B10: 13482 | D10: 10638 | F10: 2844 | I10: =+D10/B10*100 -> 78.90520694 | K10: =+F10/B10*100 -> 21.09479306
A11: Marzo | B11: 13810 | D11: 10890 | F11: 2920 | I11: 78.85590152 | K11: 21.14409848
A12: Abril | B12: 14017 | D12: 11050 | F12: 2967 | I12: 78.83284583 | K12: 21.16715417
A13: Mayo | B13: 14476 | D13: 11396 | F13: 3080 | I13: 78.72340426 | K13: 21.27659574
A14: Junio | B14: 14888 | D14: 11693 | F14: 3195 | I14: 78.53976357 | K14: 21.46023643
A15: Julio | B15: 15085 | D15: 11843 | F15: 3242 | I15: =+D15/B15*100 -> 78.5084521 | K15: 21.4915479
A16: Agosto | B16: 15313 | D16: 12018 | F16: 3295 | I16: 78.48233527 | K16: 21.51766473
A17: Setiembre | B17: 15553 | D17: 12218 | F17: 3335 | I17: 78.55719154 | K17: 21.44280846
A18: Octubre | B18: 15874 | D18: 12459 | F18: 3415 | I18: =+D18/B18*100 -> 78.48683382 | K18: 21.51316618
A19: Noviembre | B19: 16184 | D19: 12682 | F19: 3502 | I19: 78.36134454 | K19: 21.63865546
A20: Diciembre | B20: 16292 | D20: 12764 | F20: 3528 | I20: 78.3452001 | K20: 21.6547999
A23: 1/ Casos registrados desde que se promulgó la ley en abril de 2001.
A25: Fuente: Sección de Inscripciones del Tribunal Supremo de Elecciones.

Sheet 23
A1: CUADRO 23
A3: COSTA RICA: DONACIONES REPORTADAS PARA EL PROCESO ELECTORAL 2010-20141/
A4: SEGÚN PARTIDO POLÍTICO 2/, AL 31 DE DICIEMBRE DE 2012
A6: PARTIDO POLÍTICO | B6: MONTO EN COLONES | C6: PORCENTAJE
A9: TOTAL | B9: =SUM(B11:B45) -> 746799407.9 | C9: =SUM(C11:C45) -> 100
A11: ACCESIBILIDAD SIN EXCLUSIÓN | B11: 7670000 | C11: 1.129721662
A12: ACCIÓN CANTONAL SIQUIRRES INDEPENDIENTE | B12: 616000 | C12: 0.09073123123
A13: ACCIÓN CIUDADANA | B13: 46285059.4 | C13: 4.667104744
A14: ACCIÓN NARANJEÑA | B14: 48000 | C14: 0.00706996607
A15: ACCIÓN QUEPEÑA | B15: 220000 | C15: 0.03240401115
A16: ACUERDO CANTONAL DESAMPARADEÑO | B16: 4263500 | C16: 0.6279750071
A17: ALIANZA ZARCEREÑA | B17: 50000 | C17: 0.007364547989
A18: AUTÓNOMO OROMONTANO | B18: 795000 | C18: 0.117096313
A19: BARVA UNIDA (COALICIÓN) | B19: 500000 | C19: 0.07364547989
A20: CARTAGO UNIDO (COALICIÓN) | B20: 2022000 | C20: 0.2978223207
A21: CÍVICO TIBÁS FUENTEOVEJUNA | B21: 370000 | C21: 0.05449765512
A22: CURRIDABAT SIGLO XXI | B22: 970000 | C22: 0.142872231
A23: DEL SOL | B23: 8142809.35 | C23: 1.196416385
A24: EL PUENTE Y LOS CAMINOS DE MORA | B24: 2283140 | C24: 0.3362858819
A25: FRENTE AMPLIO | B25: 113161848.7 | C25: 12.08451502
A26: GOICOCHEA EN ACCIÓN | B26: 1426000 | C26: 0.2100369087
A27: INDEPENDIENTE BELEMITA | B27: 2977000 | C27: 0.2383167729
A28: INTEGRACIÓN BARBAREÑA | B28: 707222.45 | C28: 0.1041674734
A29: INTEGRACIÓN NACIONAL | B29: 59168000 | C29: 8.714911509
A30: LIBERACIÓN NACIONAL | B30: 191488295.8 | C30: 27.27273785
A31: MONTES DE OCA UNIDA (COALICIÓN) | B31: 864000 | C31: 0.1272593893
A32: MOVIMIENTO AVANCE SANTO DOMINGO | B32: 7088290.4 | C32: 0.8906802171
A33: MOVIMIENTO DE TRABAJADORES Y CAMPESINOS | B33: 2298584.05 | C33: 0.3385606509
A34: MOVIMIENTO LIBERTARIO | B34: 243318620.8 | C34: 35.70150531
A35: ORGANIZACIÓN LABORISTA DE AGUIRRE | B35: 367000 | C35: 0.05405578224
A36: RAMONENSE (COALICIÓN) | B36: 30000 | C36: 0.004418728794
A37: RENOVACIÓN COSTARRICENSE | B37: 5487000 | C37: 0.2374330272
A38: RENOVEMOS ALAJUELA | B38: 637000 | C38: 0.004418728794
A39: RESTAURACIÓN NACIONAL | B39: 12879960 | C39: 1.124263059
A40: ÚNICO ABANGAREÑO | B40: 100000 | C40: 0.01472909598
A41: UNIDAD SOCIAL CRISTIANA | B41: 9522769.25 | C41: 1.226163253
A42: UNIDOS POR SAN CARLOS (COALICIÓN) | B42: 1719000 | C42: 0.1399264118
A43: UNIÓN ATENIENSE | B43: 165000 | C43: 0.02430300836
A44: UNIÓN PALMAREÑA | B44: 1509427.77 | C44: 0.222325065
A45: YUNTA PROGRESISTA ESCAZUCEÑA | B45: 17648880 | C45: 2.484265298
A48: 1/ Total de Donaciones reportadas por los partidos políticos de marzo 2010 a diciembre 2012. Con corte al 11-02-2013.
A50: 2/ Los siguientes Partidos Políticos reportaron no haber recibido donaciones durante el período: Accesibilidad Sin Exclusión, Acuerdo Cantonal Desamparadeño, Autonomo Oromontano, Unión Poaseña.
A52: Nota: El detalle de los contribuyentes se puede consultar en www.tse.go.cr
A54: Fuente: Departamento de Financiamiento de Partidos Políticos.
